Workbook

Sheet Função Excel

Sheet Meus Pokémons
A6: Rank Geral | B6: Rank Espécie | C6: Pokémon | D6: Apelido | E6: CP | F6: HP | G6: Stardust | H6: PowerUp | I6: # Combinações | J6: Mín | K6: Máx | L6: Méd | M6: Lvl | N6: # PowerUp | O6: # Evolução | P6: Golpe Básico | Q6: Golpe Especial | R6: Combinação de Golpes | S6: Controle

Sheet Golpes
A1: No. | B1: Busca | C1: Fast Attacks | D1: Tipo | E1: Dano | F1: DPS | G1: % Crítico | H1: Recarga (ms) | I1: Special Attacks | J1: Tipo | K1: Dano | L1: DPS | M1: Crítico | N1: Recarga (ms) | O1: =IVs!$S$2 -> 27 | P1: Base | Q1: Especial | T1: =$Q2 -> Dig | U1: =$Q3 -> Rock Slide | V1: =$Q4 -> Rock Tomb | W1: =$Q5 -> 0
A2: 1 | B2: =A2&"-"&COUNTIF($A$2:A2,A2) -> 1-1 | C2: Tackle | D2: Normal | E2: 12 | F2: 10.9 | G2: 0.05 | H2: 1100 | I2: Sludge Bomb | J2: Venenoso | K2: 55 | L2: 21.7 | M2: 0.05 | N2: 2600 | O2: =$O$1&"-1" -> 27-1 | P2: =IFERROR(VLOOKUP($O2,$B:$C,2,FALSE),0) -> Scratch | Q2: =IFERROR(VLOOKUP($O2,$B:$I,8,FALSE),0) -> Dig | S2: =P2 -> Scratch | T2: =IFERROR(VLOOKUP($S2,$C:$F,4,FALSE)+VLOOKUP(T$1,$I:$L,4,FALSE),"") -> 24.4 | U2: =IFERROR(VLOOKUP($S2,$C:$F,4,FALSE)+VLOOKUP(U$1,$I:$L,4,FALSE),"") -> 28 | V2: 21.9
A3: 1 | B3: =A3&"-"&COUNTIF($A$2:A3,A3) -> 1-2 | C3: Vine Whip | D3: Grama | E3: 7 | F3: 10.8 | G3: 0.05 | H3: 650 | I3: Seed Bomb | J3: Grama | K3: 40 | L3: 17.1 | M3: 0.05 | N3: 2400 | O3: =$O$1&"-2" -> 27-2 | P3: =IFERROR(VLOOKUP($O3,$B:$C,2,FALSE),0) -> Mud Shot | Q3: =IFERROR(VLOOKUP($O3,$B:$I,8,FALSE),0) -> Rock Slide | S3: =P3 -> Mud Shot | T3: =IFERROR(VLOOKUP($S3,$C:$F,4,FALSE)+VLOOKUP(T$1,$I:$L,4,FALSE),"") -> 23.3 | U3: 26.9 | V3: 20.8
A4: 1 | B4: =A4&"-"&COUNTIF($A$2:A4,A4) -> 1-3 | I4: Power Whip | J4: Grama | K4: 70 | L4: 25 | M4: 0.25 | N4: 2800 | O4: =$O$1&"-3" -> 27-3 | P4: =IFERROR(VLOOKUP($O4,$B:$C,2,FALSE),0) -> 0 | Q4: =IFERROR(VLOOKUP($O4,$B:$I,8,FALSE),0) -> Rock Tomb | S4: 0
A5: 2 | B5: =A5&"-"&COUNTIF($A$2:A5,A5) -> 2-1 | C5: Razor Leaf | D5: Grama | E5: 15 | F5: 10.3 | G5: 0.05 | H5: 1450 | I5: Sludge Bomb | J5: Venenoso | K5: 55 | L5: 21.7 | M5: 0.05 | N5: 2600 | O5: =$O$1&"-4" -> 27-4 | P5: =IFERROR(VLOOKUP($O5,$B:$C,2,FALSE),0) -> 0 | Q5: =IFERROR(VLOOKUP($O5,$B:$I,8,FALSE),0) -> 0 | S5: 0
A6: 2 | B6: =A6&"-"&COUNTIF($A$2:A6,A6) -> 2-2 | C6: Vine Whip | D6: Grama | E6: 7 | F6: 10.8 | G6: 0.05 | H6: 650 | I6: Solar Beam | J6: Grama | K6: 120 | L6: 25.1 | M6: 0.05 | N6: 4900 | P6: ="Golpes!P2:P"&COUNTIF($P$2:$P$5,"<>0")+1 -> Golpes!P2:P3 | Q6: ="Golpes!Q2:Q"&COUNTIF($Q$2:$Q$5,"<>0")+1 -> Golpes!Q2:Q4
A7: 2 | B7: =A7&"-"&COUNTIF($A$2:A7,A7) -> 2-3 | I7: Power Whip | J7: Grama | K7: 70 | L7: 25 | M7: 0.25 | N7: 2800
A8: 3 | B8: =A8&"-"&COUNTIF($A$2:A8,A8) -> 3-1 | C8: Razor Leaf | D8: Grama | E8: 15 | F8: 10.3 | G8: 0.05 | H8: 1450 | I8: Sludge Bomb | J8: Venenoso | K8: 55 | L8: 21.7 | M8: 0.05 | N8: 2600
A9: 3 | B9: =A9&"-"&COUNTIF($A$2:A9,A9) -> 3-2 | C9: Vine Whip | D9: Grama | E9: 7 | F9: 10.8 | G9: 0.05 | H9: 650 | I9: Solar Beam | J9: Grama | K9: 120 | L9: 25.1 | M9: 0.05 | N9: 4900 | S9: Resultado | T9: =VLOOKUP(S7,$S$2:$W$5,MATCH(S8,$S$1:$W$1,0),FALSE) -> 
A10: 3 | B10: =A10&"-"&COUNTIF($A$2:A10,A10) -> 3-3 | I10: Petal Blizzard | J10: Grama | K10: 65 | L10: 20.8 | M10: 0.05 | N10: 3200 | S10: # Combinações | T10: =COUNT(T2:W5) -> 6
A11: 4 | B11: =A11&"-"&COUNTIF($A$2:A11,A11) -> 4-1 | C11: Scratch | D11: Normal | E11: 6 | F11: 12 | G11: 0.05 | H11: 500 | I11: Flame Burst | J11: Fogo | K11: 30 | L11: 14.6 | M11: 0.05 | N11: 2100 | S11: =IFERROR(IF(S7="","",IF(T10=1,"Única combinação possível",IF(T9=MAX($T$2:$W$5),"Melhor combinação de " &T10&" possíveis",IF(T9=MIN($T$2:$W$5),"Pior combinação de "&T10&" possíveis","Combinação intermediária")))),"") -> 
A12: 4 | B12: =A12&"-"&COUNTIF($A$2:A12,A12) -> 4-2 | C12: Ember | D12: Fogo | E12: 10 | F12: 9.5 | G12: 0.05 | H12: 1050 | I12: Flamethrower | J12: Fogo | K12: 55 | L12: 19.4 | M12: 0.05 | N12: 2900
A13: 4 | B13: =A13&"-"&COUNTIF($A$2:A13,A13) -> 4-3 | I13: Flame Charge | J13: Fogo | K13: 25 | L13: 8.3 | M13: 0.05 | N13: 3100
A14: 5 | B14: =A14&"-"&COUNTIF($A$2:A14,A14) -> 5-1 | C14: Scratch | D14: Normal | E14: 6 | F14: 12 | G14: 0.05 | H14: 500 | I14: Flame Burst | J14: Fogo | K14: 30 | L14: 14.6 | M14: 0.05 | N14: 2100
A15: 5 | B15: =A15&"-"&COUNTIF($A$2:A15,A15) -> 5-2 | C15: Ember | D15: Fogo | E15: 10 | F15: 9.5 | G15: 0.05 | H15: 1050 | I15: Flamethrower | J15: Fogo | K15: 55 | L15: 19.4 | M15: 0.05 | N15: 2900
A16: 5 | B16: =A16&"-"&COUNTIF($A$2:A16,A16) -> 5-3 | I16: Fire Punch | J16: Fogo | K16: 40 | L16: 14.6 | M16: 0.05 | N16: 2800
A17: 6 | B17: =A17&"-"&COUNTIF($A$2:A17,A17) -> 6-1 | C17: Wing Attack | D17: Voador | E17: 9 | F17: 12 | G17: 0.05 | H17: 750 | I17: Dragon Claw | J17: Dragão | K17: 35 | L17: 26.3 | M17: 0.25 | N17: 1500
A18: 6 | B18: =A18&"-"&COUNTIF($A$2:A18,A18) -> 6-2 | C18: Ember | D18: Fogo | E18: 10 | F18: 9.5 | G18: 0.05 | H18: 1050 | I18: Flamethrower | J18: Fogo | K18: 55 | L18: 19.4 | M18: 0.05 | N18: 2900
A19: 6 | B19: =A19&"-"&COUNTIF($A$2:A19,A19) -> 6-3 | I19: Fire Blast | J19: Fogo | K19: 100 | L19: 25 | M19: 0.05 | N19: 4100
A20: 7 | B20: =A20&"-"&COUNTIF($A$2:A20,A20) -> 7-1 | C20: Tackle | D20: Normal | E20: 12 | F20: 10.9 | G20: 0.05 | H20: 1100 | I20: Aqua Jet | J20: Água | K20: 25 | L20: 10.9 | M20: 0.05 | N20: 2350
A21: 7 | B21: =A21&"-"&COUNTIF($A$2:A21,A21) -> 7-2 | C21: Bubble | D21: Água | E21: 25 | F21: 10.9 | G21: 0.05 | H21: 2300 | I21: Aqua Tail | J21: Água | K21: 45 | L21: 19.6 | M21: 0.05 | N21: 2350
A22: 7 | B22: =A22&"-"&COUNTIF($A$2:A22,A22) -> 7-3 | I22: Water Pulse | J22: Água | K22: 35 | L22: 10.9 | M22: 0.05 | N22: 3300
A23: 8 | B23: =A23&"-"&COUNTIF($A$2:A23,A23) -> 8-1 | C23: Bite | D23: Sombrio | E23: 6 | F23: 12 | G23: 0.05 | H23: 500 | I23: Aqua Jet | J23: Água | K23: 25 | L23: 10.9 | M23: 0.05 | N23: 2350
A24: 8 | B24: =A24&"-"&COUNTIF($A$2:A24,A24) -> 8-2 | C24: Water Gun | D24: Água | E24: 6 | F24: 12 | G24: 0.05 | H24: 500 | I24: Hydro Pump | J24: Água | K24: 90 | L24: 24.3 | M24: 0.05 | N24: 3800
A25: 8 | B25: =A25&"-"&COUNTIF($A$2:A25,A25) -> 8-3 | I25: Ice Beam | J25: Gelo | K25: 65 | L25: 18.3 | M25: 0.05 | N25: 3650
A26: 9 | B26: =A26&"-"&COUNTIF($A$2:A26,A26) -> 9-1 | C26: Bite | D26: Sombrio | E26: 6 | F26: 12 | G26: 0.05 | H26: 500 | I26: Ice Beam | J26: Gelo | K26: 65 | L26: 18.3 | M26: 0.05 | N26: 3650
A27: 9 | B27: =A27&"-"&COUNTIF($A$2:A27,A27) -> 9-2 | C27: Water Gun | D27: Água | E27: 6 | F27: 12 | G27: 0.05 | H27: 500 | I27: Hydro Pump | J27: Água | K27: 90 | L27: 24.3 | M27: 0.05 | N27: 3800
A28: 9 | B28: =A28&"-"&COUNTIF($A$2:A28,A28) -> 9-3 | I28: Flash Cannon | J28: Metal | K28: 60 | L28: 15.8 | M28: 0.05 | N28: 3900
A29: 10 | B29: =A29&"-"&COUNTIF($A$2:A29,A29) -> 10-1 | C29: Tackle | D29: Normal | E29: 12 | F29: 10.9 | G29: 0.05 | H29: 1100 | I29: Struggle | J29: Normal | K29: 15 | L29: 8.8 | M29: 0.05 | N29: 1695
A30: 10 | B30: =A30&"-"&COUNTIF($A$2:A30,A30) -> 10-2 | C30: Bug Bite | D30: Inseto | E30: 5 | F30: 11.1 | G30: 0.05 | H30: 450
A31: 11 | B31: =A31&"-"&COUNTIF($A$2:A31,A31) -> 11-1 | C31: Tackle | D31: Normal | E31: 12 | F31: 10.9 | G31: 0.05 | H31: 1100 | I31: Struggle | J31: Normal | K31: 15 | L31: 8.8 | M31: 0.05 | N31: 1695
A32: 11 | B32: =A32&"-"&COUNTIF($A$2:A32,A32) -> 11-2 | C32: Bug Bite | D32: Inseto | E32: 5 | F32: 11.1 | G32: 0.05 | H32: 450
A33: 12 | B33: =A33&"-"&COUNTIF($A$2:A33,A33) -> 12-1 | C33: Confusion | D33: Psíquico | E33: 15 | F33: 9.9 | G33: 0.05 | H33: 1510 | I33: Psychic | J33: Psíquico | K33: 55 | L33: 20.1 | M33: 0.05 | N33: 2800
A34: 12 | B34: =A34&"-"&COUNTIF($A$2:A34,A34) -> 12-2 | C34: Bug Bite | D34: Inseto | E34: 5 | F34: 11.1 | G34: 0.05 | H34: 450 | I34: Bug Buzz | J34: Inseto | K34: 75 | L34: 18.1 | M34: 0.05 | N34: 4250
A35: 12 | B35: =A35&"-"&COUNTIF($A$2:A35,A35) -> 12-3 | I35: Signal Beam | J35: Inseto | K35: 45 | L35: 14.9 | M35: 0.05 | N35: 3100
A36: 13 | B36: =A36&"-"&COUNTIF($A$2:A36,A36) -> 13-1 | C36: Bug Bite | D36: Inseto | E36: 5 | F36: 11.1 | G36: 0.05 | H36: 450 | I36: Struggle | J36: Normal | K36: 15 | L36: 8.8 | M36: 0.05 | N36: 1695
A37: 13 | B37: =A37&"-"&COUNTIF($A$2:A37,A37) -> 13-2 | C37: Poison Sting | D37: Venenoso | E37: 6 | F37: 10.4 | G37: 0.05 | H37: 575
A38: 14 | B38: =A38&"-"&COUNTIF($A$2:A38,A38) -> 14-1 | C38: Bug Bite | D38: Inseto | E38: 5 | F38: 11.1 | G38: 0.05 | H38: 450 | I38: Struggle | J38: Normal | K38: 15 | L38: 8.8 | M38: 0.05 | N38: 1695
A39: 14 | B39: =A39&"-"&COUNTIF($A$2:A39,A39) -> 14-2 | C39: Poison Sting | D39: Venenoso | E39: 6 | F39: 10.4 | G39: 0.05 | H39: 575
A40: 15 | B40: =A40&"-"&COUNTIF($A$2:A40,A40) -> 15-1 | C40: Bug Bite | D40: Inseto | E40: 5 | F40: 11.1 | G40: 0.05 | H40: 450 | I40: Aerial Ace | J40: Voador | K40: 30 | L40: 10.6 | M40: 0.05 | N40: 2900
A41: 15 | B41: =A41&"-"&COUNTIF($A$2:A41,A41) -> 15-2 | C41: Poison Jab | D41: Venenoso | E41: 12 | F41: 11.4 | G41: 0.05 | H41: 1050 | I41: Sludge Bomb | J41: Venenoso | K41: 55 | L41: 21.7 | M41: 0.05 | N41: 2600
A42: 15 | B42: =A42&"-"&COUNTIF($A$2:A42,A42) -> 15-3 | I42: X-Scissor | J42: Inseto | K42: 35 | L42: 17.1 | M42: 0.05 | N42: 2100
A43: 16 | B43: =A43&"-"&COUNTIF($A$2:A43,A43) -> 16-1 | C43: Tackle | D43: Normal | E43: 12 | F43: 10.9 | G43: 0.05 | H43: 1100 | I43: Twister | J43: Dragão | K43: 25 | L43: 9.5 | M43: 0.05 | N43: 2700
A44: 16 | B44: =A44&"-"&COUNTIF($A$2:A44,A44) -> 16-2 | C44: Quick Attack | D44: Normal | E44: 10 | F44: 7.5 | G44: 0.05 | H44: 1330 | I44: Aerial Ace | J44: Voador | K44: 30 | L44: 10.6 | M44: 0.05 | N44: 2900
A45: 16 | B45: =A45&"-"&COUNTIF($A$2:A45,A45) -> 16-3 | I45: Air Cutter | J45: Voador | K45: 30 | L45: 10.2 | M45: 0.25 | N45: 3300
A46: 17 | B46: =A46&"-"&COUNTIF($A$2:A46,A46) -> 17-1 | C46: Wing Attack | D46: Voador | E46: 9 | F46: 12 | G46: 0.05 | H46: 750 | I46: Twister | J46: Dragão | K46: 25 | L46: 9.5 | M46: 0.05 | N46: 2700
A47: 17 | B47: =A47&"-"&COUNTIF($A$2:A47,A47) -> 17-2 | C47: Steel Wing | D47: Metal | E47: 15 | F47: 11.3 | G47: 0.05 | H47: 1330 | I47: Aerial Ace | J47: Voador | K47: 30 | L47: 10.6 | M47: 0.05 | N47: 2900
A48: 17 | B48: =A48&"-"&COUNTIF($A$2:A48,A48) -> 17-3 | I48: Air Cutter | J48: Voador | K48: 30 | L48: 10.2 | M48: 0.25 | N48: 3300
A49: 18 | B49: =A49&"-"&COUNTIF($A$2:A49,A49) -> 18-1 | C49: Wing Attack | D49: Voador | E49: 9 | F49: 12 | G49: 0.05 | H49: 750 | I49: Hurricane | J49: Voador | K49: 80 | L49: 25.6 | M49: 0.05 | N49: 3200
A50: 18 | B50: =A50&"-"&COUNTIF($A$2:A50,A50) -> 18-2 | C50: Steel Wing | D50: Metal | E50: 15 | F50: 11.3 | G50: 0.05 | H50: 1330 | I50: Aerial Ace | J50: Voador | K50: 30 | L50: 10.6 | M50: 0.05 | N50: 2900
A51: 18 | B51: =A51&"-"&COUNTIF($A$2:A51,A51) -> 18-3 | I51: Air Cutter | J51: Voador | K51: 30 | L51: 10.2 | M51: 0.25 | N51: 3300
A52: 19 | B52: =A52&"-"&COUNTIF($A$2:A52,A52) -> 19-1 | C52: Tackle | D52: Normal | E52: 12 | F52: 10.9 | G52: 0.05 | H52: 1100 | I52: Dig | J52: Terra | K52: 70 | L52: 12.4 | M52: 0.05 | N52: 5800
A53: 19 | B53: =A53&"-"&COUNTIF($A$2:A53,A53) -> 19-2 | C53: Quick Attack | D53: Normal | E53: 10 | F53: 7.5 | G53: 0.05 | H53: 1330 | I53: Hyper Fang | J53: Normal | K53: 35 | L53: 17.1 | M53: 0.05 | N53: 2100
A54: 19 | B54: =A54&"-"&COUNTIF($A$2:A54,A54) -> 19-3 | I54: Body Slam | J54: Normal | K54: 40 | L54: 26.3 | M54: 0.05 | N54: 1560
A55: 20 | B55: =A55&"-"&COUNTIF($A$2:A55,A55) -> 20-1 | C55: Bite | D55: Sombrio | E55: 6 | F55: 12 | G55: 0.05 | H55: 500 | I55: Dig | J55: Terra | K55: 70 | L55: 12.4 | M55: 0.05 | N55: 5800
A56: 20 | B56: =A56&"-"&COUNTIF($A$2:A56,A56) -> 20-2 | C56: Quick Attack | D56: Normal | E56: 10 | F56: 7.5 | G56: 0.05 | H56: 1330 | I56: Hyper Fang | J56: Normal | K56: 35 | L56: 17.1 | M56: 0.05 | N56: 2100
A57: 20 | B57: =A57&"-"&COUNTIF($A$2:A57,A57) -> 20-3 | I57: Hyper Beam | J57: Normal | K57: 120 | L57: 24.6 | M57: 0.05 | N57: 5000
A58: 21 | B58: =A58&"-"&COUNTIF($A$2:A58,A58) -> 21-1 | C58: Quick Attack | D58: Normal | E58: 10 | F58: 7.5 | G58: 0.05 | H58: 1330 | I58: Aerial Ace | J58: Voador | K58: 30 | L58: 10.6 | M58: 0.05 | N58: 2900
A59: 21 | B59: =A59&"-"&COUNTIF($A$2:A59,A59) -> 21-2 | C59: Peck | D59: Voador | E59: 10 | F59: 8.7 | G59: 0.05 | H59: 1150 | I59: Twister | J59: Dragão | K59: 25 | L59: 9.5 | M59: 0.05 | N59: 2700
A60: 21 | B60: =A60&"-"&COUNTIF($A$2:A60,A60) -> 21-3 | I60: Drill Peck | J60: Voador | K60: 40 | L60: 15.2 | M60: 0.05 | N60: 2700
A61: 22 | B61: =A61&"-"&COUNTIF($A$2:A61,A61) -> 22-1 | C61: Steel Wing | D61: Metal | E61: 15 | F61: 11.3 | G61: 0.05 | H61: 1330 | I61: Aerial Ace | J61: Voador | K61: 30 | L61: 10.6 | M61: 0.05 | N61: 2900
A62: 22 | B62: =A62&"-"&COUNTIF($A$2:A62,A62) -> 22-2 | C62: Peck | D62: Voador | E62: 10 | F62: 8.7 | G62: 0.05 | H62: 1150 | I62: Twister | J62: Dragão | K62: 25 | L62: 9.5 | M62: 0.05 | N62: 2700
A63: 22 | B63: =A63&"-"&COUNTIF($A$2:A63,A63) -> 22-3 | I63: Drill Run | J63: Terra | K63: 50 | L63: 16.5 | M63: 0.25 | N63: 3400
A64: 23 | B64: =A64&"-"&COUNTIF($A$2:A64,A64) -> 23-1 | C64: Acid | D64: Venenoso | E64: 10 | F64: 9.5 | G64: 0.05 | H64: 1050 | I64: Gunk Shot | J64: Venenoso | K64: 65 | L64: 22.2 | M64: 0.05 | N64: 3000
A65: 23 | B65: =A65&"-"&COUNTIF($A$2:A65,A65) -> 23-2 | C65: Poison Sting | D65: Venenoso | E65: 6 | F65: 10.4 | G65: 0.05 | H65: 575 | I65: Sludge Bomb | J65: Venenoso | K65: 55 | L65: 21.7 | M65: 0.05 | N65: 2600
A66: 23 | B66: =A66&"-"&COUNTIF($A$2:A66,A66) -> 23-3 | I66: Wrap | J66: Normal | K66: 25 | L66: 6.4 | M66: 0.05 | N66: 4000
A67: 24 | B67: =A67&"-"&COUNTIF($A$2:A67,A67) -> 24-1 | C67: Acid | D67: Venenoso | E67: 10 | F67: 9.5 | G67: 0.05 | H67: 1050 | I67: Gunk Shot | J67: Venenoso | K67: 65 | L67: 22.2 | M67: 0.05 | N67: 3000
A68: 24 | B68: =A68&"-"&COUNTIF($A$2:A68,A68) -> 24-2 | C68: Bite | D68: Sombrio | E68: 6 | F68: 12 | G68: 0.05 | H68: 500 | I68: Sludge Wave | J68: Venenoso | K68: 70 | L68: 21.1 | M68: 0.05 | N68: 3400
A69: 24 | B69: =A69&"-"&COUNTIF($A$2:A69,A69) -> 24-3 | I69: Dark Pulse | J69: Sombrio | K69: 45 | L69: 13.2 | M69: 0.05 | N69: 3500
A70: 25 | B70: =A70&"-"&COUNTIF($A$2:A70,A70) -> 25-1 | C70: Thunder Shock | D70: Elétrico | E70: 5 | F70: 8.3 | G70: 0.05 | H70: 600 | I70: Thunderbolt | J70: Elétrico | K70: 55 | L70: 20.9 | M70: 0.05 | N70: 2700
A71: 25 | B71: =A71&"-"&COUNTIF($A$2:A71,A71) -> 25-2 | C71: Quick Attack | D71: Normal | E71: 10 | F71: 7.5 | G71: 0.05 | H71: 1330 | I71: Discharge | J71: Elétrico | K71: 35 | L71: 14.4 | M71: 0.05 | N71: 2500
A72: 25 | B72: =A72&"-"&COUNTIF($A$2:A72,A72) -> 25-3 | I72: Thunder | J72: Elétrico | K72: 100 | L72: 23.8 | M72: 0.05 | N72: 4300
A73: 26 | B73: =A73&"-"&COUNTIF($A$2:A73,A73) -> 26-1 | C73: Thunder Shock | D73: Elétrico | E73: 5 | F73: 8.3 | G73: 0.05 | H73: 600 | I73: Brick Break | J73: Lutador | K73: 30 | L73: 21.1 | M73: 0.25 | N73: 1600
A74: 26 | B74: =A74&"-"&COUNTIF($A$2:A74,A74) -> 26-2 | C74: Spark | D74: Elétrico | E74: 7 | F74: 10 | G74: 0.05 | H74: 700 | I74: Thunder Punch | J74: Elétrico | K74: 40 | L74: 17.1 | M74: 0.05 | N74: 2400
A75: 26 | B75: =A75&"-"&COUNTIF($A$2:A75,A75) -> 26-3 | I75: Thunder | J75: Elétrico | K75: 100 | L75: 23.8 | M75: 0.05 | N75: 4300
A76: 27 | B76: =A76&"-"&COUNTIF($A$2:A76,A76) -> 27-1 | C76: Scratch | D76: Normal | E76: 6 | F76: 12 | G76: 0.05 | H76: 500 | I76: Dig | J76: Terra | K76: 70 | L76: 12.4 | M76: 0.05 | N76: 5800
A77: 27 | B77: =A77&"-"&COUNTIF($A$2:A77,A77) -> 27-2 | C77: Mud Shot | D77: Terra | E77: 6 | F77: 10.9 | G77: 0.05 | H77: 550 | I77: Rock Slide | J77: Pedra | K77: 50 | L77: 16 | M77: 0.05 | N77: 3200
A78: 27 | B78: =A78&"-"&COUNTIF($A$2:A78,A78) -> 27-3 | I78: Rock Tomb | J78: Pedra | K78: 30 | L78: 9.9 | M78: 0.25 | N78: 3400
A79: 28 | B79: =A79&"-"&COUNTIF($A$2:A79,A79) -> 28-1 | C79: Metal Claw | D79: Metal | E79: 8 | F79: 12.7 | G79: 0.05 | H79: 630 | I79: Rock Tomb | J79: Pedra | K79: 30 | L79: 9.9 | M79: 0.25 | N79: 3400
A80: 28 | B80: =A80&"-"&COUNTIF($A$2:A80,A80) -> 28-2 | C80: Mud Shot | D80: Terra | E80: 6 | F80: 10.9 | G80: 0.05 | H80: 550 | I80: Bulldoze | J80: Terra | K80: 35 | L80: 10.6 | M80: 0.05 | N80: 3400
A81: 28 | B81: =A81&"-"&COUNTIF($A$2:A81,A81) -> 28-3 | I81: Earthquake | J81: Terra | K81: 100 | L81: 24.4 | M81: 0.05 | N81: 4200
A82: 29 | B82: =A82&"-"&COUNTIF($A$2:A82,A82) -> 29-1 | C82: Poison Sting | D82: Venenoso | E82: 6 | F82: 10.4 | G82: 0.05 | H82: 575 | I82: Poison Fang | J82: Venenoso | K82: 25 | L82: 10.7 | M82: 0.05 | N82: 2400
A83: 29 | B83: =A83&"-"&COUNTIF($A$2:A83,A83) -> 29-2 | C83: Bite | D83: Sombrio | E83: 6 | F83: 12 | G83: 0.05 | H83: 500 | I83: Sludge Bomb | J83: Venenoso | K83: 55 | L83: 21.7 | M83: 0.05 | N83: 2600
A84: 29 | B84: =A84&"-"&COUNTIF($A$2:A84,A84) -> 29-3 | I84: Body Slam | J84: Normal | K84: 40 | L84: 26.3 | M84: 0.05 | N84: 1560
A85: 30 | B85: =A85&"-"&COUNTIF($A$2:A85,A85) -> 30-1 | C85: Poison Sting | D85: Venenoso | E85: 6 | F85: 10.4 | G85: 0.05 | H85: 575 | I85: Poison Fang | J85: Venenoso | K85: 25 | L85: 10.7 | M85: 0.05 | N85: 2400
A86: 30 | B86: =A86&"-"&COUNTIF($A$2:A86,A86) -> 30-2 | C86: Bite | D86: Sombrio | E86: 6 | F86: 12 | G86: 0.05 | H86: 500 | I86: Sludge Bomb | J86: Venenoso | K86: 55 | L86: 21.7 | M86: 0.05 | N86: 2600
A87: 30 | B87: =A87&"-"&COUNTIF($A$2:A87,A87) -> 30-3 | I87: Dig | J87: Terra | K87: 70 | L87: 12.4 | M87: 0.05 | N87: 5800
A88: 31 | B88: =A88&"-"&COUNTIF($A$2:A88,A88) -> 31-1 | C88: Poison Jab | D88: Venenoso | E88: 12 | F88: 11.4 | G88: 0.05 | H88: 1050 | I88: Stone Edge | J88: Pedra | K88: 80 | L88: 32.3 | M88: 0.5 | N88: 3100
A89: 31 | B89: =A89&"-"&COUNTIF($A$2:A89,A89) -> 31-2 | C89: Bite | D89: Sombrio | E89: 6 | F89: 12 | G89: 0.05 | H89: 500 | I89: Sludge Wave | J89: Venenoso | K89: 70 | L89: 21.1 | M89: 0.05 | N89: 3400
A90: 31 | B90: =A90&"-"&COUNTIF($A$2:A90,A90) -> 31-3 | I90: Earthquake | J90: Terra | K90: 100 | L90: 24.4 | M90: 0.05 | N90: 4200
A91: 32 | B91: =A91&"-"&COUNTIF($A$2:A91,A91) -> 32-1 | C91: Poison Sting | D91: Venenoso | E91: 6 | F91: 10.4 | G91: 0.05 | H91: 575 | I91: Horn Attack | J91: Normal | K91: 25 | L91: 11.6 | M91: 0.05 | N91: 2200
A92: 32 | B92: =A92&"-"&COUNTIF($A$2:A92,A92) -> 32-2 | C92: Peck | D92: Voador | E92: 10 | F92: 8.7 | G92: 0.05 | H92: 1150 | I92: Body Slam | J92: Normal | K92: 40 | L92: 26.3 | M92: 0.05 | N92: 1560
A93: 32 | B93: =A93&"-"&COUNTIF($A$2:A93,A93) -> 32-3 | I93: Sludge Bomb | J93: Venenoso | K93: 55 | L93: 21.7 | M93: 0.05 | N93: 2600
A94: 33 | B94: =A94&"-"&COUNTIF($A$2:A94,A94) -> 33-1 | C94: Poison Jab | D94: Venenoso | E94: 12 | F94: 11.4 | G94: 0.05 | H94: 1050 | I94: Horn Attack | J94: Normal | K94: 25 | L94: 11.6 | M94: 0.05 | N94: 2200
A95: 33 | B95: =A95&"-"&COUNTIF($A$2:A95,A95) -> 33-2 | C95: Bite | D95: Sombrio | E95: 6 | F95: 12 | G95: 0.05 | H95: 500 | I95: Dig | J95: Terra | K95: 70 | L95: 12.4 | M95: 0.05 | N95: 5800
A96: 33 | B96: =A96&"-"&COUNTIF($A$2:A96,A96) -> 33-3 | I96: Sludge Bomb | J96: Venenoso | K96: 55 | L96: 21.7 | M96: 0.05 | N96: 2600
A97: 34 | B97: =A97&"-"&COUNTIF($A$2:A97,A97) -> 34-1 | C97: Poison Jab | D97: Venenoso | E97: 12 | F97: 11.4 | G97: 0.05 | H97: 1050 | I97: Megahorn | J97: Inseto | K97: 80 | L97: 25.6 | M97: 0.05 | N97: 3200
A98: 34 | B98: =A98&"-"&COUNTIF($A$2:A98,A98) -> 34-2 | C98: Fury Cutter | D98: Inseto | E98: 3 | F98: 7.5 | G98: 0.05 | H98: 400 | I98: Earthquake | J98: Terra | K98: 100 | L98: 24.4 | M98: 0.05 | N98: 4200
A99: 34 | B99: =A99&"-"&COUNTIF($A$2:A99,A99) -> 34-3 | I99: Sludge Wave | J99: Venenoso | K99: 70 | L99: 21.1 | M99: 0.05 | N99: 3400
A100: 35 | B100: =A100&"-"&COUNTIF($A$2:A100,A100) -> 35-1 | C100: Zen Headbutt | D100: Psíquico | E100: 12 | F100: 11.4 | G100: 0.05 | H100: 1050 | I100: Body Slam | J100: Normal | K100: 40 | L100: 26.3 | M100: 0.05 | N100: 1560
A101: 35 | B101: =A101&"-"&COUNTIF($A$2:A101,A101) -> 35-2 | C101: Pound | D101: Normal | E101: 7 | F101: 13 | G101: 0.05 | H101: 540 | I101: Disarming Voice | J101: Fada | K101: 25 | L101: 6.6 | M101: 0.05 | N101: 3900
A102: 35 | B102: =A102&"-"&COUNTIF($A$2:A102,A102) -> 35-3 | I102: Moonblast | J102: Fada | K102: 85 | L102: 21.3 | M102: 0.05 | N102: 4100
A103: 36 | B103: =A103&"-"&COUNTIF($A$2:A103,A103) -> 36-1 | C103: Zen Headbutt | D103: Psíquico | E103: 12 | F103: 11.4 | G103: 0.05 | H103: 1050 | I103: Psychic | J103: Psíquico | K103: 55 | L103: 20.1 | M103: 0.05 | N103: 2800
A104: 36 | B104: =A104&"-"&COUNTIF($A$2:A104,A104) -> 36-2 | C104: Pound | D104: Normal | E104: 7 | F104: 13 | G104: 0.05 | H104: 540 | I104: Dazzling Gleam | J104: Fada | K104: 55 | L104: 13.4 | M104: 0.05 | N104: 4200
A105: 36 | B105: =A105&"-"&COUNTIF($A$2:A105,A105) -> 36-3 | I105: Moonblast | J105: Fada | K105: 85 | L105: 21.3 | M105: 0.05 | N105: 4100
A106: 37 | B106: =A106&"-"&COUNTIF($A$2:A106,A106) -> 37-1 | C106: Quick Attack | D106: Normal | E106: 10 | F106: 7.5 | G106: 0.05 | H106: 1330 | I106: Flamethrower | J106: Fogo | K106: 55 | L106: 19.4 | M106: 0.05 | N106: 2900
A107: 37 | B107: =A107&"-"&COUNTIF($A$2:A107,A107) -> 37-2 | C107: Ember | D107: Fogo | E107: 10 | F107: 9.5 | G107: 0.05 | H107: 1050 | I107: Body Slam | J107: Normal | K107: 40 | L107: 26.3 | M107: 0.05 | N107: 1560
A108: 37 | B108: =A108&"-"&COUNTIF($A$2:A108,A108) -> 37-3 | I108: Flame Charge | J108: Fogo | K108: 25 | L108: 8.3 | M108: 0.05 | N108: 3100
A109: 38 | B109: =A109&"-"&COUNTIF($A$2:A109,A109) -> 38-1 | C109: Feint Attack | D109: Sombrio | E109: 12 | F109: 11.5 | G109: 0.05 | H109: 1040 | I109: Heat Wave | J109: Fogo | K109: 80 | L109: 21.6 | M109: 0.05 | N109: 3800
A110: 38 | B110: =A110&"-"&COUNTIF($A$2:A110,A110) -> 38-2 | C110: Ember | D110: Fogo | E110: 10 | F110: 9.5 | G110: 0.05 | H110: 1050 | I110: Fire Blast | J110: Fogo | K110: 100 | L110: 25 | M110: 0.05 | N110: 4100
A111: 38 | B111: =A111&"-"&COUNTIF($A$2:A111,A111) -> 38-3 | I111: Flamethrower | J111: Fogo | K111: 55 | L111: 19.4 | M111: 0.05 | N111: 2900
A112: 39 | B112: =A112&"-"&COUNTIF($A$2:A112,A112) -> 39-1 | C112: Feint Attack | D112: Sombrio | E112: 12 | F112: 11.5 | G112: 0.05 | H112: 1040 | I112: Disarming Voice | J112: Fada | K112: 25 | L112: 6.6 | M112: 0.05 | N112: 3900
A113: 39 | B113: =A113&"-"&COUNTIF($A$2:A113,A113) -> 39-2 | C113: Pound | D113: Normal | E113: 7 | F113: 13 | G113: 0.05 | H113: 540 | I113: Body Slam | J113: Normal | K113: 40 | L113: 26.3 | M113: 0.05 | N113: 1560
A114: 39 | B114: =A114&"-"&COUNTIF($A$2:A114,A114) -> 39-3 | I114: Play Rough | J114: Fada | K114: 55 | L114: 19.4 | M114: 0.05 | N114: 2900
A115: 40 | B115: =A115&"-"&COUNTIF($A$2:A115,A115) -> 40-1 | C115: Feint Attack | D115: Sombrio | E115: 12 | F115: 11.5 | G115: 0.05 | H115: 1040 | I115: Dazzling Gleam | J115: Fada | K115: 55 | L115: 13.4 | M115: 0.05 | N115: 4200
A116: 40 | B116: =A116&"-"&COUNTIF($A$2:A116,A116) -> 40-2 | C116: Pound | D116: Normal | E116: 7 | F116: 13 | G116: 0.05 | H116: 540 | I116: Hyper Beam | J116: Normal | K116: 120 | L116: 24.6 | M116: 0.05 | N116: 5000
A117: 40 | B117: =A117&"-"&COUNTIF($A$2:A117,A117) -> 40-3 | I117: Play Rough | J117: Fada | K117: 55 | L117: 19.4 | M117: 0.05 | N117: 2900
A118: 41 | B118: =A118&"-"&COUNTIF($A$2:A118,A118) -> 41-1 | C118: Bite | D118: Sombrio | E118: 6 | F118: 12 | G118: 0.05 | H118: 500 | I118: Sludge Bomb | J118: Venenoso | K118: 55 | L118: 21.7 | M118: 0.05 | N118: 2600
A119: 41 | B119: =A119&"-"&COUNTIF($A$2:A119,A119) -> 41-2 | C119: Quick Attack | D119: Normal | E119: 10 | F119: 7.5 | G119: 0.05 | H119: 1330 | I119: Poison Fang | J119: Venenoso | K119: 25 | L119: 10.7 | M119: 0.05 | N119: 2400
A120: 41 | B120: =A120&"-"&COUNTIF($A$2:A120,A120) -> 41-3 | I120: Air Cutter | J120: Voador | K120: 30 | L120: 10.2 | M120: 0.25 | N120: 3300
A121: 42 | B121: =A121&"-"&COUNTIF($A$2:A121,A121) -> 42-1 | C121: Bite | D121: Sombrio | E121: 6 | F121: 12 | G121: 0.05 | H121: 500 | I121: Ominous Wind | J121: Fantasma | K121: 30 | L121: 9.9 | M121: 0.05 | N121: 3100
A122: 42 | B122: =A122&"-"&COUNTIF($A$2:A122,A122) -> 42-2 | C122: Wing Attack | D122: Voador | E122: 9 | F122: 12 | G122: 0.05 | H122: 750 | I122: Poison Fang | J122: Venenoso | K122: 25 | L122: 10.7 | M122: 0.05 | N122: 2400
A123: 42 | B123: =A123&"-"&COUNTIF($A$2:A123,A123) -> 42-3 | I123: Air Cutter | J123: Voador | K123: 30 | L123: 10.2 | M123: 0.25 | N123: 3300
A124: 43 | B124: =A124&"-"&COUNTIF($A$2:A124,A124) -> 43-1 | C124: Razor Leaf | D124: Grama | E124: 15 | F124: 10.3 | G124: 0.05 | H124: 1450 | I124: Moonblast | J124: Fada | K124: 85 | L124: 21.3 | M124: 0.05 | N124: 4100
A125: 43 | B125: =A125&"-"&COUNTIF($A$2:A125,A125) -> 43-2 | C125: Acid | D125: Venenoso | E125: 10 | F125: 9.5 | G125: 0.05 | H125: 1050 | I125: Seed Bomb | J125: Grama | K125: 40 | L125: 17.1 | M125: 0.05 | N125: 2400
A126: 43 | B126: =A126&"-"&COUNTIF($A$2:A126,A126) -> 43-3 | I126: Sludge Bomb | J126: Venenoso | K126: 55 | L126: 21.7 | M126: 0.05 | N126: 2600
A127: 44 | B127: =A127&"-"&COUNTIF($A$2:A127,A127) -> 44-1 | C127: Razor Leaf | D127: Grama | E127: 15 | F127: 10.3 | G127: 0.05 | H127: 1450 | I127: Moonblast | J127: Fada | K127: 85 | L127: 21.3 | M127: 0.05 | N127: 4100
A128: 44 | B128: =A128&"-"&COUNTIF($A$2:A128,A128) -> 44-2 | C128: Acid | D128: Venenoso | E128: 10 | F128: 9.5 | G128: 0.05 | H128: 1050 | I128: Petal Blizzard | J128: Grama | K128: 65 | L128: 20.8 | M128: 0.05 | N128: 3200
A129: 44 | B129: =A129&"-"&COUNTIF($A$2:A129,A129) -> 44-3 | I129: Sludge Bomb | J129: Venenoso | K129: 55 | L129: 21.7 | M129: 0.05 | N129: 2600
A130: 45 | B130: =A130&"-"&COUNTIF($A$2:A130,A130) -> 45-1 | C130: Razor Leaf | D130: Grama | E130: 15 | F130: 10.3 | G130: 0.05 | H130: 1450 | I130: Moonblast | J130: Fada | K130: 85 | L130: 21.3 | M130: 0.05 | N130: 4100
A131: 45 | B131: =A131&"-"&COUNTIF($A$2:A131,A131) -> 45-2 | C131: Acid | D131: Venenoso | E131: 10 | F131: 9.5 | G131: 0.05 | H131: 1050 | I131: Petal Blizzard | J131: Grama | K131: 65 | L131: 20.8 | M131: 0.05 | N131: 3200
A132: 45 | B132: =A132&"-"&COUNTIF($A$2:A132,A132) -> 45-3 | I132: Solar Beam | J132: Grama | K132: 120 | L132: 25.1 | M132: 0.05 | N132: 4900
A133: 46 | B133: =A133&"-"&COUNTIF($A$2:A133,A133) -> 46-1 | C133: Bug Bite | D133: Inseto | E133: 5 | F133: 11.1 | G133: 0.05 | H133: 450 | I133: Seed Bomb | J133: Grama | K133: 40 | L133: 17.1 | M133: 0.05 | N133: 2400
A134: 46 | B134: =A134&"-"&COUNTIF($A$2:A134,A134) -> 46-2 | C134: Scratch | D134: Normal | E134: 6 | F134: 12 | G134: 0.05 | H134: 500 | I134: X-Scissor | J134: Inseto | K134: 35 | L134: 17.1
A135: 46 | B135: =A135&"-"&COUNTIF($A$2:A135,A135) -> 46-3 | I135: Cross Poison | J135: Venenoso | K135: 25 | L135: 18.8 | M135: 0.25 | N135: 1500
A136: 47 | B136: =A136&"-"&COUNTIF($A$2:A136,A136) -> 47-1 | C136: Bug Bite | D136: Inseto | E136: 5 | F136: 11.1 | G136: 0.05 | H136: 450 | I136: Solar Beam | J136: Grama | K136: 120 | L136: 25.1 | M136: 0.05 | N136: 4900
A137: 47 | B137: =A137&"-"&COUNTIF($A$2:A137,A137) -> 47-2 | C137: Fury Cutter | D137: Inseto | E137: 3 | F137: 7.5 | G137: 0.05 | H137: 400 | I137: X-Scissor | J137: Inseto | K137: 35 | L137: 17.1
A138: 47 | B138: =A138&"-"&COUNTIF($A$2:A138,A138) -> 47-3 | I138: Cross Poison | J138: Venenoso | K138: 25 | L138: 18.8 | M138: 0.25 | N138: 1500
A139: 48 | B139: =A139&"-"&COUNTIF($A$2:A139,A139) -> 48-1 | C139: Confusion | D139: Psíquico | E139: 15 | F139: 9.9 | G139: 0.05 | H139: 1510 | I139: Signal Beam | J139: Inseto | K139: 45 | L139: 14.9 | M139: 0.05 | N139: 3100
A140: 48 | B140: =A140&"-"&COUNTIF($A$2:A140,A140) -> 48-2 | C140: Bug Bite | D140: Inseto | E140: 5 | F140: 11.1 | G140: 0.05 | H140: 450 | I140: Poison Fang | J140: Venenoso | K140: 25 | L140: 10.7 | M140: 0.05 | N140: 2400
A141: 48 | B141: =A141&"-"&COUNTIF($A$2:A141,A141) -> 48-3 | I141: Psybeam | J141: Psíquico | K141: 40 | L141: 10.8 | M141: 0.05 | N141: 3800
A142: 49 | B142: =A142&"-"&COUNTIF($A$2:A142,A142) -> 49-1 | C142: Confusion | D142: Psíquico | E142: 15 | F142: 9.9 | G142: 0.05 | H142: 1510 | I142: Bug Buzz | J142: Inseto | K142: 75 | L142: 18.1 | M142: 0.05 | N142: 4250
A143: 49 | B143: =A143&"-"&COUNTIF($A$2:A143,A143) -> 49-2 | C143: Bug Bite | D143: Inseto | E143: 5 | F143: 11.1 | G143: 0.05 | H143: 450 | I143: Poison Fang | J143: Venenoso | K143: 25 | L143: 10.7 | M143: 0.05 | N143: 2400
A144: 49 | B144: =A144&"-"&COUNTIF($A$2:A144,A144) -> 49-3 | I144: Psychic | J144: Psíquico | K144: 55 | L144: 20.1 | M144: 0.05 | N144: 2800
A145: 50 | B145: =A145&"-"&COUNTIF($A$2:A145,A145) -> 50-1 | C145: Scratch | D145: Normal | E145: 6 | F145: 12 | G145: 0.05 | H145: 500 | I145: Rock Tomb | J145: Pedra | K145: 30 | L145: 9.9 | M145: 0.25 | N145: 3400
A146: 50 | B146: =A146&"-"&COUNTIF($A$2:A146,A146) -> 50-2 | C146: Mud Shot | D146: Terra | E146: 6 | F146: 10.9 | G146: 0.05 | H146: 550 | I146: Dig | J146: Terra | K146: 70 | L146: 12.4 | M146: 0.05 | N146: 5800
A147: 50 | B147: =A147&"-"&COUNTIF($A$2:A147,A147) -> 50-3 | I147: Mud Bomb | J147: Terra | K147: 30 | L147: 11.8 | M147: 0.05 | N147: 2600
A148: 51 | B148: =A148&"-"&COUNTIF($A$2:A148,A148) -> 51-1 | C148: Sucker Punch | D148: Sombrio | E148: 7 | F148: 10 | G148: 0.05 | H148: 700 | I148: Stone Edge | J148: Pedra | K148: 80 | L148: 32.3 | M148: 0.5 | N148: 3100
A149: 51 | B149: =A149&"-"&COUNTIF($A$2:A149,A149) -> 51-2 | C149: Mud Shot | D149: Terra | E149: 6 | F149: 10.9 | G149: 0.05 | H149: 550 | I149: Earthquake | J149: Terra | K149: 100 | L149: 24.4 | M149: 0.05 | N149: 4200
A150: 51 | B150: =A150&"-"&COUNTIF($A$2:A150,A150) -> 51-3 | I150: Mud Bomb | J150: Terra | K150: 30 | L150: 11.8 | M150: 0.05 | N150: 2600
A151: 52 | B151: =A151&"-"&COUNTIF($A$2:A151,A151) -> 52-1 | C151: Scratch | D151: Normal | E151: 6 | F151: 12 | G151: 0.05 | H151: 500 | I151: Dark Pulse | J151: Sombrio | K151: 45 | L151: 13.2 | M151: 0.05 | N151: 3500
A152: 52 | B152: =A152&"-"&COUNTIF($A$2:A152,A152) -> 52-2 | C152: Bite | D152: Sombrio | E152: 6 | F152: 12 | G152: 0.05 | H152: 500 | I152: Night Slash | J152: Sombrio | K152: 30 | L152: 12.5 | M152: 0.25 | N152: 2700
A153: 52 | B153: =A153&"-"&COUNTIF($A$2:A153,A153) -> 52-3 | I153: Body Slam | J153: Normal | K153: 40 | L153: 26.3 | M153: 0.05 | N153: 1560
A154: 53 | B154: =A154&"-"&COUNTIF($A$2:A154,A154) -> 53-1 | C154: Scratch | D154: Normal | E154: 6 | F154: 12 | G154: 0.05 | H154: 500 | I154: Play Rough | J154: Fada | K154: 55 | L154: 19.4 | M154: 0.05 | N154: 2900
A155: 53 | B155: =A155&"-"&COUNTIF($A$2:A155,A155) -> 53-2 | C155: Feint Attack | D155: Sombrio | E155: 12 | F155: 11.5 | G155: 0.05 | H155: 1040 | I155: Power Gem | J155: Pedra | K155: 40 | L155: 14.1 | M155: 0.05 | N155: 2900
A156: 53 | B156: =A156&"-"&COUNTIF($A$2:A156,A156) -> 53-3 | I156: Night Slash | J156: Sombrio | K156: 30 | L156: 12.5 | M156: 0.25 | N156: 2700
A157: 54 | B157: =A157&"-"&COUNTIF($A$2:A157,A157) -> 54-1 | C157: Zen Headbutt | D157: Psíquico | E157: 12 | F157: 11.4 | G157: 0.05 | H157: 1050 | I157: Aqua Tail | J157: Água | K157: 45 | L157: 19.6 | M157: 0.05 | N157: 2350
A158: 54 | B158: =A158&"-"&COUNTIF($A$2:A158,A158) -> 54-2 | C158: Water Gun | D158: Água | E158: 6 | F158: 12 | G158: 0.05 | H158: 500 | I158: Cross Chop | J158: Lutador | K158: 60 | L158: 33.8 | M158: 0.25 | N158: 2000
A159: 54 | B159: =A159&"-"&COUNTIF($A$2:A159,A159) -> 54-3 | I159: Psybeam | J159: Psíquico | K159: 40 | L159: 10.8 | M159: 0.05 | N159: 3800
A160: 55 | B160: =A160&"-"&COUNTIF($A$2:A160,A160) -> 55-1 | C160: Confusion | D160: Psíquico | E160: 15 | F160: 9.9 | G160: 0.05 | H160: 1510 | I160: Hydro Pump | J160: Água | K160: 90 | L160: 24.3 | M160: 0.05 | N160: 3800
A161: 55 | B161: =A161&"-"&COUNTIF($A$2:A161,A161) -> 55-2 | C161: Water Gun | D161: Água | E161: 6 | F161: 12 | G161: 0.05 | H161: 500 | I161: Ice Beam | J161: Gelo | K161: 65 | L161: 18.3 | M161: 0.05 | N161: 3650
A162: 55 | B162: =A162&"-"&COUNTIF($A$2:A162,A162) -> 55-3 | I162: Psychic | J162: Psíquico | K162: 55 | L162: 20.1 | M162: 0.05 | N162: 2800
A163: 56 | B163: =A163&"-"&COUNTIF($A$2:A163,A163) -> 56-1 | C163: Karate Chop | D163: Lutador | E163: 6 | F163: 7.5 | G163: 0.05 | H163: 800 | I163: Brick Break | J163: Lutador | K163: 30 | L163: 21.1 | M163: 0.25 | N163: 1600
A164: 56 | B164: =A164&"-"&COUNTIF($A$2:A164,A164) -> 56-2 | C164: Scratch | D164: Normal | E164: 6 | F164: 12 | G164: 0.05 | H164: 500 | I164: Cross Chop | J164: Lutador | K164: 60 | L164: 33.8 | M164: 0.25 | N164: 2000
A165: 56 | B165: =A165&"-"&COUNTIF($A$2:A165,A165) -> 56-3 | I165: Low Sweep | J165: Lutador | K165: 30 | L165: 13.7 | M165: 0.05 | N165: 2250
A166: 57 | B166: =A166&"-"&COUNTIF($A$2:A166,A166) -> 57-1 | C166: Karate Chop | D166: Lutador | E166: 6 | F166: 7.5 | G166: 0.05 | H166: 800 | I166: Night Slash | J166: Sombrio | K166: 30 | L166: 12.5 | M166: 0.25 | N166: 2700
A167: 57 | B167: =A167&"-"&COUNTIF($A$2:A167,A167) -> 57-2 | C167: Low Kick | D167: Lutador | E167: 5 | F167: 8.3 | G167: 0.05 | H167: 600 | I167: Cross Chop | J167: Lutador | K167: 60 | L167: 33.8 | M167: 0.25 | N167: 2000
A168: 57 | B168: =A168&"-"&COUNTIF($A$2:A168,A168) -> 57-3 | I168: Low Sweep | J168: Lutador | K168: 30 | L168: 13.7 | M168: 0.05 | N168: 2250
A169: 58 | B169: =A169&"-"&COUNTIF($A$2:A169,A169) -> 58-1 | C169: Ember | D169: Fogo | E169: 10 | F169: 9.5 | G169: 0.05 | H169: 1050 | I169: Flame Wheel | J169: Fogo | K169: 40 | L169: 8.9 | M169: 0.05 | N169: 4600
A170: 58 | B170: =A170&"-"&COUNTIF($A$2:A170,A170) -> 58-2 | C170: Bite | D170: Sombrio | E170: 6 | F170: 12 | G170: 0.05 | H170: 500 | I170: Body Slam | J170: Normal | K170: 40 | L170: 26.3 | M170: 0.05 | N170: 1560
A171: 58 | B171: =A171&"-"&COUNTIF($A$2:A171,A171) -> 58-3 | I171: Flamethrower | J171: Fogo | K171: 55 | L171: 19.4 | M171: 0.05 | N171: 2900
A172: 59 | B172: =A172&"-"&COUNTIF($A$2:A172,A172) -> 59-1 | C172: Fire Fang | D172: Fogo | E172: 10 | F172: 11.9 | G172: 0.05 | H172: 840 | I172: Fire Blast | J172: Fogo | K172: 100 | L172: 25 | M172: 0.05 | N172: 4100
A173: 59 | B173: =A173&"-"&COUNTIF($A$2:A173,A173) -> 59-2 | C173: Bite | D173: Sombrio | E173: 6 | F173: 12 | G173: 0.05 | H173: 500 | I173: Bulldoze | J173: Terra | K173: 35 | L173: 10.6 | M173: 0.05 | N173: 3400
A174: 59 | B174: =A174&"-"&COUNTIF($A$2:A174,A174) -> 59-3 | I174: Flamethrower | J174: Fogo | K174: 55 | L174: 19.4 | M174: 0.05 | N174: 2900
A175: 60 | B175: =A175&"-"&COUNTIF($A$2:A175,A175) -> 60-1 | C175: Bubble | D175: Água | E175: 25 | F175: 10.9 | G175: 0.05 | H175: 2300 | I175: Body Slam | J175: Normal | K175: 40 | L175: 26.3 | M175: 0.05 | N175: 1560
A176: 60 | B176: =A176&"-"&COUNTIF($A$2:A176,A176) -> 60-2 | C176: Mud Shot | D176: Terra | E176: 6 | F176: 10.9 | G176: 0.05 | H176: 550 | I176: Bubble Beam | J176: Água | K176: 30 | L176: 10.6 | M176: 0.05 | N176: 2900
A177: 60 | B177: =A177&"-"&COUNTIF($A$2:A177,A177) -> 60-3 | I177: Mud Bomb | J177: Terra | K177: 30 | L177: 11.8 | M177: 0.05 | N177: 2600
A178: 61 | B178: =A178&"-"&COUNTIF($A$2:A178,A178) -> 61-1 | C178: Bubble | D178: Água | E178: 25 | F178: 10.9 | G178: 0.05 | H178: 2300 | I178: Scald | J178: Água | K178: 55 | L178: 14.1 | M178: 0.05 | N178: 4000
A179: 61 | B179: =A179&"-"&COUNTIF($A$2:A179,A179) -> 61-2 | C179: Mud Shot | D179: Terra | E179: 6 | F179: 10.9 | G179: 0.05 | H179: 550 | I179: Bubble Beam | J179: Água | K179: 30 | L179: 10.6 | M179: 0.05 | N179: 2900
A180: 61 | B180: =A180&"-"&COUNTIF($A$2:A180,A180) -> 61-3 | I180: Mud Bomb | J180: Terra | K180: 30 | L180: 11.8 | M180: 0.05 | N180: 2600
A181: 62 | B181: =A181&"-"&COUNTIF($A$2:A181,A181) -> 62-1 | C181: Bubble | D181: Água | E181: 25 | F181: 10.9 | G181: 0.05 | H181: 2300 | I181: Ice Punch | J181: Gelo | K181: 45 | L181: 13.2 | M181: 0.05 | N181: 3500
A182: 62 | B182: =A182&"-"&COUNTIF($A$2:A182,A182) -> 62-2 | C182: Mud Shot | D182: Terra | E182: 6 | F182: 10.9 | G182: 0.05 | H182: 550 | I182: Hydro Pump | J182: Água | K182: 90 | L182: 24.3 | M182: 0.05 | N182: 3800
A183: 62 | B183: =A183&"-"&COUNTIF($A$2:A183,A183) -> 62-3 | I183: Submission | J183: Lutador | K183: 30 | L183: 14.6 | M183: 0.05 | N183: 2100
A184: 63 | B184: =A184&"-"&COUNTIF($A$2:A184,A184) -> 63-1 | C184: Zen Headbutt | D184: Psíquico | E184: 12 | F184: 11.4 | G184: 0.05 | H184: 1050 | I184: Shadow Ball | J184: Fantasma | K184: 45 | L184: 15 | M184: 0.05 | N184: 3080
A185: 63 | B185: =A185&"-"&COUNTIF($A$2:A185,A185) -> 63-2 | I185: Signal Beam | J185: Inseto | K185: 45 | L185: 14.9 | M185: 0.05 | N185: 3100
A186: 63 | B186: =A186&"-"&COUNTIF($A$2:A186,A186) -> 63-3 | I186: Psyshock | J186: Psíquico | K186: 40 | L186: 15.2 | M186: 0.05 | N186: 2700
A187: 64 | B187: =A187&"-"&COUNTIF($A$2:A187,A187) -> 64-1 | C187: Confusion | D187: Psíquico | E187: 15 | F187: 9.9 | G187: 0.05 | H187: 1510 | I187: Shadow Ball | J187: Fantasma | K187: 45 | L187: 15 | M187: 0.05 | N187: 3080
A188: 64 | B188: =A188&"-"&COUNTIF($A$2:A188,A188) -> 64-2 | C188: Psycho Cut | D188: Psíquico | E188: 7 | F188: 12.3 | G188: 0.05 | H188: 570 | I188: Dazzling Gleam | J188: Fada | K188: 55 | L188: 13.4 | M188: 0.05 | N188: 4200
A189: 64 | B189: =A189&"-"&COUNTIF($A$2:A189,A189) -> 64-3 | I189: Psybeam | J189: Psíquico | K189: 40 | L189: 10.8 | M189: 0.05 | N189: 3800
A190: 65 | B190: =A190&"-"&COUNTIF($A$2:A190,A190) -> 65-1 | C190: Confusion | D190: Psíquico | E190: 15 | F190: 9.9 | G190: 0.05 | H190: 1510 | I190: Shadow Ball | J190: Fantasma | K190: 45 | L190: 15 | M190: 0.05 | N190: 3080
A191: 65 | B191: =A191&"-"&COUNTIF($A$2:A191,A191) -> 65-2 | C191: Psycho Cut | D191: Psíquico | E191: 7 | F191: 12.3 | G191: 0.05 | H191: 570 | I191: Dazzling Gleam | J191: Fada | K191: 55 | L191: 13.4 | M191: 0.05 | N191: 4200
A192: 65 | B192: =A192&"-"&COUNTIF($A$2:A192,A192) -> 65-3 | I192: Psychic | J192: Psíquico | K192: 55 | L192: 20.1 | M192: 0.05 | N192: 2800
A193: 66 | B193: =A193&"-"&COUNTIF($A$2:A193,A193) -> 66-1 | C193: Low Kick | D193: Lutador | E193: 5 | F193: 8.3 | G193: 0.05 | H193: 600 | I193: Brick Break | J193: Lutador | K193: 30 | L193: 21.1 | M193: 0.25 | N193: 1600
A194: 66 | B194: =A194&"-"&COUNTIF($A$2:A194,A194) -> 66-2 | C194: Karate Chop | D194: Lutador | E194: 6 | F194: 7.5 | G194: 0.05 | H194: 800 | I194: Cross Chop | J194: Lutador | K194: 60 | L194: 33.8 | M194: 0.25 | N194: 2000
A195: 66 | B195: =A195&"-"&COUNTIF($A$2:A195,A195) -> 66-3 | I195: Low Sweep | J195: Lutador | K195: 30 | L195: 13.7 | M195: 0.05 | N195: 2250
A196: 67 | B196: =A196&"-"&COUNTIF($A$2:A196,A196) -> 67-1 | C196: Low Kick | D196: Lutador | E196: 5 | F196: 8.3 | G196: 0.05 | H196: 600 | I196: Brick Break | J196: Lutador | K196: 30 | L196: 21.1 | M196: 0.25 | N196: 1600
A197: 67 | B197: =A197&"-"&COUNTIF($A$2:A197,A197) -> 67-2 | C197: Karate Chop | D197: Lutador | E197: 6 | F197: 7.5 | G197: 0.05 | H197: 800 | I197: Cross Chop | J197: Lutador | K197: 60 | L197: 33.8 | M197: 0.25 | N197: 2000
A198: 67 | B198: =A198&"-"&COUNTIF($A$2:A198,A198) -> 67-3 | I198: Submission | J198: Lutador | K198: 30 | L198: 14.6 | M198: 0.05 | N198: 2100
A199: 68 | B199: =A199&"-"&COUNTIF($A$2:A199,A199) -> 68-1 | C199: Bullet Punch | D199: Metal | E199: 10 | F199: 8.3 | G199: 0.05 | H199: 1200 | I199: Stone Edge | J199: Pedra | K199: 80 | L199: 32.3 | M199: 0.5 | N199: 3100
A200: 68 | B200: =A200&"-"&COUNTIF($A$2:A200,A200) -> 68-2 | C200: Karate Chop | D200: Lutador | E200: 6 | F200: 7.5 | G200: 0.05 | H200: 800 | I200: Cross Chop | J200: Lutador | K200: 60 | L200: 33.8 | M200: 0.25 | N200: 2000
... 253 more rows

Sheet Pokémons
A1: # | B1: Name | C1: Tipo 1 | D1: Tipo 2 | E1: Natureza | F1: Disponibilidade | G1: Candies Necessários | H1: Ovos | I1: HP | J1: Attack | K1: Defense | L1: Max CP | M1: Catch Rate | N1: Flee Rate | O1: Mín Multp CP | P1: Máx Multp CP | Q1: Multp Médio CP | R1: Best Quick | S1: Best Main
A2: 1 | B2: Bulbasaur | C2: Grama | D2: Venenoso | E2: Semente | F2: Disponível | G2: 25 Bulbasaur Candy | H2: 2,00 km | I2: 90 | J2: 126 | K2: 126 | L2: 1072 | M2: 0.16 | N2: 0.1 | O2: 1.53 | P2: 1.58 | Q2: 1.555 | R2: Vine Whip | S2: Power Whip
A3: 2 | B3: Ivysaur | C3: Grama | D3: Venenoso | E3: Semente | F3: Disponível | G3: 100 Bulbasaur Candy | H3: Não possui ovos | I3: 120 | J3: 156 | K3: 158 | L3: 1632 | M3: 0.08 | N3: 0.07 | O3: 1.2 | P3: 1.61 | Q3: 1.405 | R3: Vine Whip | S3: Solar Whip
A4: 3 | B4: Venusaur | C4: Grama | D4: Venenoso | E4: Semente | F4: Disponível | G4: Não Evolui | H4: Não possui ovos | I4: 160 | J4: 198 | K4: 200 | L4: 2580 | M4: 0.04 | N4: 0.05 | O4: --- | P4: --- | Q4: --- | R4: Vine Whip | S4: Solar Whip
A5: 4 | B5: Charmander | C5: Fogo | E5: Lagarto | F5: Disponível | G5: 25 Charmander Candy | H5: 2,00 km | I5: 78 | J5: 128 | K5: 108 | L5: 955 | M5: 0.16 | N5: 0.1 | O5: 1.64 | P5: 1.7 | Q5: 1.67 | R5: Scratch | S5: Flamethrower
A6: 5 | B6: Charmeleon | C6: Fogo | E6: Chama | F6: Disponível | G6: 100 Charmander Candy | H6: Não possui ovos | I6: 116 | J6: 160 | K6: 140 | L6: 1557 | M6: 0.08 | N6: 0.07 | O6: 1.71 | P6: 1.73 | Q6: 1.72 | R6: Scratch | S6: Flamethrower
A7: 6 | B7: Charizard | C7: Fogo | D7: Voador | E7: Chama | F7: Disponível | G7: Não Evolui | H7: Não possui ovos | I7: 156 | J7: 212 | K7: 182 | L7: 2602 | M7: 0.04 | N7: 0.05 | O7: --- | P7: --- | Q7: --- | R7: Wing Attack | S7: Fire Blast
A8: 7 | B8: Squirtle | C8: Água | E8: Tartaruga | F8: Disponível | G8: 25 Squirtle Candy | H8: 2,00 km | I8: 88 | J8: 112 | K8: 142 | L8: 1009 | M8: 0.16 | N8: 0.1 | O8: 1.63 | P8: 1.66 | Q8: 1.645 | R8: Bubble | S8: Aqua Tail
A9: 8 | B9: Wartortle | C9: Água | E9: Tartaruga | F9: Disponível | G9: 100 Squirtle Candy | H9: Não possui ovos | I9: 118 | J9: 144 | K9: 176 | L9: 1583 | M9: 0.08 | N9: 0.07 | O9: 1.4 | P9: 1.65 | Q9: 1.525 | R9: Water Gun | S9: Hydro Pump
A10: 9 | B10: Blastoise | C10: Água | E10: Marisco | F10: Disponível | G10: Não Evolui | H10: Não possui ovos | I10: 158 | J10: 186 | K10: 222 | L10: 2542 | M10: 0.04 | N10: 0.05 | O10: --- | P10: --- | Q10: --- | R10: Water Gun | S10: Hydro Pump
A11: 10 | B11: Caterpie | C11: Inseto | E11: Minhoca | F11: Disponível | G11: 12 Caterpie Candy | H11: 2,00 km | I11: 90 | J11: 62 | K11: 66 | L11: 444 | M11: 0.4 | N11: 0.2 | O11: 1.04 | P11: 1.08 | Q11: 1.06 | R11: Bug Bite | S11: Struggle
A12: 11 | B12: Metapod | C12: Inseto | E12: Casulo | F12: Disponível | G12: 50 Caterpie Candy | H12: Não possui ovos | I12: 100 | J12: 56 | K12: 86 | L12: 478 | M12: 0.2 | N12: 0.09 | O12: 3.52 | P12: 3.79 | Q12: 3.655 | R12: Bug Bite | S12: Struggle
A13: 12 | B13: Butterfree | C13: Inseto | D13: Voador | E13: Borboleta | F13: Disponível | G13: Não Evolui | H13: Não possui ovos | I13: 120 | J13: 144 | K13: 144 | L13: 1455 | M13: 0.1 | N13: 0.06 | O13: --- | P13: --- | Q13: --- | R13: Bug Bite | S13: Bug Buzz
A14: 13 | B14: Weedle | C14: Inseto | D14: Venenoso | E14: Inseto Peludo | F14: Disponível | G14: 12 Weedle Candy | H14: 2,00 km | I14: 80 | J14: 68 | K14: 64 | L14: 449 | M14: 0.4 | N14: 0.2 | O14: 1.06 | P14: 1.1 | Q14: 1.08 | R14: Bug Bite | S14: Struggle
A15: 14 | B15: Kakuna | C15: Inseto | D15: Venenoso | E15: Casulo | F15: Disponível | G15: 50 Weedle Candy | H15: Não possui ovos | I15: 90 | J15: 62 | K15: 82 | L15: 485 | M15: 0.2 | N15: 0.09 | O15: 3.3 | P15: 3.42 | Q15: 3.36 | R15: Bug Bite | S15: Struggle
A16: 15 | B16: Beedrill | C16: Inseto | D16: Venenoso | E16: Abelha Venenosa | F16: Disponível | G16: Não Evolui | H16: Não possui ovos | I16: 130 | J16: 144 | K16: 130 | L16: 1440 | M16: 0.1 | N16: 0.06 | O16: --- | P16: --- | Q16: --- | R16: Poison Jab | S16: Sludge Bomb
A17: 16 | B17: Pidgey | C17: Normal | D17: Voador | E17: Pássaro Pequeno | F17: Disponível | G17: 12 Pidgey Candy | H17: 2,00 km | I17: 80 | J17: 94 | K17: 90 | L17: 680 | M17: 0.4 | N17: 0.2 | O17: 1.82 | P17: 1.95 | Q17: 1.885 | R17: Tackle | S17: Aerial Ace
A18: 17 | B18: Pidgeotto | C18: Normal | D18: Voador | E18: Pássaro | F18: Disponível | G18: 50 Pidgey Candy | H18: Não possui ovos | I18: 126 | J18: 126 | K18: 122 | L18: 1224 | M18: 0.2 | N18: 0.09 | O18: 1.73 | P18: 1.78 | Q18: 1.755 | R18: Wing Attack | S18: Aerial Ace
A19: 18 | B19: Pidgeot | C19: Normal | D19: Voador | E19: Pássaro | F19: Disponível | G19: Não Evolui | H19: Não possui ovos | I19: 166 | J19: 170 | K19: 166 | L19: 2091 | M19: 0.1 | N19: 0.06 | O19: --- | P19: --- | Q19: --- | R19: Wing Attack | S19: Hurricane
A20: 19 | B20: Rattata | C20: Normal | E20: Rato | F20: Disponível | G20: 25 Rattata Candy | H20: 2,00 km | I20: 60 | J20: 92 | K20: 86 | L20: 582 | M20: 0.4 | N20: 0.2 | O20: 2.61 | P20: 2.73 | Q20: 2.67 | R20: Tackle | S20: Body Slam
A21: 20 | B21: Raticate | C21: Normal | E21: Rato | F21: Disponível | G21: Não Evolui | H21: Não possui ovos | I21: 110 | J21: 146 | K21: 150 | L21: 1444 | M21: 0.16 | N21: 0.07 | O21: --- | P21: --- | Q21: --- | R21: Bite | S21: Hyper Beam
A22: 21 | B22: Spearow | C22: Normal | D22: Voador | E22: Pássaro Pequeno | F22: Disponível | G22: 50 Spearow Candy | H22: 2,00 km | I22: 80 | J22: 102 | K22: 78 | L22: 687 | M22: 0.4 | N22: 0.15 | O22: 2.58 | P22: 2.81 | Q22: 2.695 | R22: Peck | S22: Aerial Ace
A23: 22 | B23: Fearow | C23: Normal | D23: Voador | E23: Bico | F23: Disponível | G23: Não Evolui | H23: Não possui ovos | I23: 130 | J23: 168 | K23: 146 | L23: 1746 | M23: 0.16 | N23: 0.07 | O23: --- | P23: --- | Q23: --- | R23: Steel Wing | S23: Aerial Ace
A24: 23 | B24: Ekans | C24: Venenoso | E24: Serpente | F24: Disponível | G24: 50 Ekans Candy | H24: 5,00 km | I24: 70 | J24: 112 | K24: 112 | L24: 824 | M24: 0.4 | N24: 0.15 | O24: 2.2 | P24: 2.33 | Q24: 2.265 | R24: Poison Sting | S24: Gunk Shot
A25: 24 | B25: Arbok | C25: Venenoso | E25: Cobra | F25: Disponível | G25: Não Evolui | H25: Não possui ovos | I25: 120 | J25: 166 | K25: 166 | L25: 1767 | M25: 0.16 | N25: 0.07 | O25: --- | P25: --- | Q25: --- | R25: Bite | S25: Gunk Shot
A26: 25 | B26: Pikachu | C26: Elétrico | E26: Rato | F26: Disponível | G26: 50 Pikachu Candy | H26: 2,00 km | I26: 70 | J26: 124 | K26: 108 | L26: 888 | M26: 0.16 | N26: 0.1 | O26: 2.33 | P26: 2.38 | Q26: 2.355 | R26: Thunder Shock | S26: Thunder
A27: 26 | B27: Raichu | C27: Elétrico | E27: Rato | F27: Disponível | G27: Não Evolui | H27: Não possui ovos | I27: 120 | J27: 200 | K27: 154 | L27: 2028 | M27: 0.08 | N27: 0.06 | O27: --- | P27: --- | Q27: --- | R27: Spark | S27: Thunder
A28: 27 | B28: Sandshrew | C28: Terra | E28: Rato | F28: Disponível | G28: 50 Sandshrew Candy | H28: 5,00 km | I28: 100 | J28: 90 | K28: 114 | L28: 799 | M28: 0.4 | N28: 0.1 | O28: 2.35 | P28: 2.76 | Q28: 2.555 | R28: Mud Shot | S28: Dig
A29: 28 | B29: Sandslash | C29: Terra | E29: Rato | F29: Disponível | G29: Não Evolui | H29: Não possui ovos | I29: 150 | J29: 150 | K29: 172 | L29: 1810 | M29: 0.16 | N29: 0.06 | O29: --- | P29: --- | Q29: --- | R29: Mud Shot | S29: Earthquake
A30: 29 | B30: Nidoran F | C30: Venenoso | E30: Chifre Venenoso | F30: Disponível | G30: 25 Nidoran♀ Candy | H30: 5,00 km | I30: 110 | J30: 100 | K30: 104 | L30: 876 | M30: 0.4 | N30: 0.15 | O30: 1.62 | P30: 1.66 | Q30: 1.64 | R30: --- | S30: ---
A31: 30 | B31: Nidorina | C31: Venenoso | E31: Chifre Venenoso | F31: Disponível | G31: 100 Nidoran♀ Candy | H31: Não possui ovos | I31: 140 | J31: 132 | K31: 136 | L31: 1405 | M31: 0.2 | N31: 0.07 | O31: 1.8 | P31: 2.04 | Q31: 1.92 | R31: Poison Sting | S31: Sludge Bomb
A32: 31 | B32: Nidoqueen | C32: Venenoso | D32: Terra | E32: Broca | F32: Disponível | G32: Não Evolui | H32: Não possui ovos | I32: 180 | J32: 184 | K32: 190 | L32: 2485 | M32: 0.1 | N32: 0.05 | O32: --- | P32: --- | Q32: --- | R32: Poison Jab | S32: Earthquake
A33: 32 | B33: Nidoran M | C33: Venenoso | E33: Chifre Venenoso | F33: Disponível | G33: 25 Nidoran♂ Candy | H33: 5,00 km | I33: 92 | J33: 110 | K33: 94 | L33: 843 | M33: 0.4 | N33: 0.15 | O33: 1.65 | P33: 1.7 | Q33: 1.675 | R33: --- | S33: ---
A34: 33 | B34: Nidorino | C34: Venenoso | E34: Chifre Venenoso | F34: Disponível | G34: 100 Nidoran♂ Candy | H34: Não possui ovos | I34: 122 | J34: 142 | K34: 128 | L34: 1373 | M34: 0.2 | N34: 0.07 | O34: 1.64 | P34: 1.86 | Q34: 1.75 | R34: Poison Jab | S34: Sludge Bomb
A35: 34 | B35: Nidoking | C35: Venenoso | D35: Terra | E35: Broca | F35: Disponível | G35: Não Evolui | H35: Não possui ovos | I35: 162 | J35: 204 | K35: 170 | L35: 2475 | M35: 0.1 | N35: 0.05 | O35: --- | P35: --- | Q35: --- | R35: Poison Jab | S35: Earthquake
A36: 35 | B36: Clefairy | C36: Normal | E36: Fada | F36: Disponível | G36: 50 Clefairy Candy | H36: 2,00 km | I36: 140 | J36: 116 | K36: 124 | L36: 1201 | M36: 0.24 | N36: 0.1 | O36: 2.02 | P36: 2.2 | Q36: 2.11 | R36: Pound | S36: Moonblast
A37: 36 | B37: Clefable | C37: Normal | E37: Fada | F37: Disponível | G37: Não Evolui | H37: Não possui ovos | I37: 190 | J37: 178 | K37: 178 | L37: 2398 | M37: 0.08 | N37: 0.06 | O37: --- | P37: --- | Q37: --- | R37: Pound | S37: Moonblast
A38: 37 | B38: Vulpix | C38: Fogo | E38: Raposa | F38: Disponível | G38: 50 Vulpix Candy | H38: 5,00 km | I38: 76 | J38: 106 | K38: 118 | L38: 831 | M38: 0.24 | N38: 0.1 | O38: 2.68 | P38: 2.74 | Q38: 2.71 | R38: Ember | S38: Body Slam
A39: 38 | B39: Ninetales | C39: Fogo | E39: Raposa | F39: Disponível | G39: Não Evolui | H39: Não possui ovos | I39: 146 | J39: 176 | K39: 194 | L39: 2188 | M39: 0.08 | N39: 0.06 | O39: --- | P39: --- | Q39: --- | R39: Ember | S39: Fire blast
A40: 39 | B40: Jigglypuff | C40: Normal | E40: Balão | F40: Disponível | G40: 50 Jigglypuff Candy | H40: 2,00 km | I40: 230 | J40: 98 | K40: 54 | L40: 918 | M40: 0.4 | N40: 0.1 | O40: 2.41 | P40: 2.47 | Q40: 2.44 | R40: Pound | S40: Body Slam
A41: 40 | B41: Wigglytuff | C41: Normal | E41: Balão | F41: Disponível | G41: Não Evolui | H41: Não possui ovos | I41: 280 | J41: 168 | K41: 108 | L41: 2177 | M41: 0.16 | N41: 0.06 | O41: --- | P41: --- | Q41: --- | R41: Pound | S41: Hyper beam
A42: 41 | B42: Zubat | C42: Venenoso | D42: Voador | E42: Morcego | F42: Disponível | G42: 50 Zubat Candy | H42: 2,00 km | I42: 80 | J42: 88 | K42: 90 | L42: 643 | M42: 0.4 | N42: 0.2 | O42: 2.9 | P42: 3.33 | Q42: 3.115 | R42: Bite | S42: Sludge Bomb
A43: 42 | B43: Golbat | C43: Venenoso | D43: Voador | E43: Morcego | F43: Disponível | G43: Não Evolui | H43: Não possui ovos | I43: 150 | J43: 164 | K43: 164 | L43: 1921 | M43: 0.16 | N43: 0.07 | O43: --- | P43: --- | Q43: --- | R43: Wing Attack | S43: Poison Fang
A44: 43 | B44: Oddish | C44: Grama | D44: Venenoso | E44: Erva Daninha | F44: Disponível | G44: 25 Oddish Candy | H44: 5,00 km | I44: 90 | J44: 134 | K44: 130 | L44: 1148 | M44: 0.48 | N44: 0.15 | O44: 1.48 | P44: 1.51 | Q44: 1.495 | R44: Razor Leaf | S44: Sludge Bomb
A45: 44 | B45: Gloom | C45: Grama | D45: Venenoso | E45: Erva Daninha | F45: Disponível | G45: 100 Oddish Candy | H45: Não possui ovos | I45: 120 | J45: 162 | K45: 158 | L45: 1689 | M45: 0.24 | N45: 0.07 | O45: 1.48 | P45: 1.53 | Q45: 1.505 | R45: Razor Leaf | S45: Petal Blizzard
A46: 45 | B46: Vileplume | C46: Grama | D46: Venenoso | E46: Flor | F46: Disponível | G46: Não Evolui | H46: Não possui ovos | I46: 150 | J46: 202 | K46: 190 | L46: 2493 | M46: 0.12 | N46: 0.05 | O46: --- | P46: --- | Q46: --- | R46: Razor Leaf | S46: Solar Beam
A47: 46 | B47: Paras | C47: Inseto | D47: Grama | E47: Cogumelo | F47: Disponível | G47: 50 Paras Candy | H47: 5,00 km | I47: 70 | J47: 122 | K47: 120 | L47: 917 | M47: 0.32 | N47: 0.15 | O47: 1.92 | P47: 2.02 | Q47: 1.97 | R47: Bug Bite | S47: X Scissor/Seed Bomb
A48: 47 | B48: Parasect | C48: Inseto | D48: Grama | E48: Cogumelo | F48: Disponível | G48: Não Evolui | H48: Não possui ovos | I48: 120 | J48: 162 | K48: 170 | L48: 1747 | M48: 0.16 | N48: 0.07 | O48: --- | P48: --- | Q48: --- | R48: Bug Bite | S48: Solar Beam
A49: 48 | B49: Venonat | C49: Inseto | D49: Venenoso | E49: Inseto | F49: Disponível | G49: 50 Venonat Candy | H49: 5,00 km | I49: 120 | J49: 108 | K49: 118 | L49: 1029 | M49: 0.4 | N49: 0.15 | O49: 1.85 | P49: 1.9 | Q49: 1.875 | R49: Bug Bite | S49: Signal Beam
A50: 49 | B50: Venomoth | C50: Inseto | D50: Venenoso | E50: Traça Venenosa | F50: Disponível | G50: Não Evolui | H50: Não possui ovos | I50: 140 | J50: 172 | K50: 154 | L50: 1890 | M50: 0.16 | N50: 0.07 | O50: --- | P50: --- | Q50: --- | R50: But Bite | S50: Bug Buzz
A51: 50 | B51: Diglett | C51: Terra | E51: Toupeira | F51: Disponível | G51: 50 Diglett Candy | H51: 5,00 km | I51: 20 | J51: 108 | K51: 86 | L51: 457 | M51: 0.4 | N51: 0.1 | O51: 2.68 | P51: 2.77 | Q51: 2.725 | R51: Mud Shot | S51: Dig
A52: 51 | B52: Dugtrio | C52: Terra | E52: Toupeira | F52: Disponível | G52: Não Evolui | H52: Não possui ovos | I52: 70 | J52: 148 | K52: 140 | L52: 1169 | M52: 0.16 | N52: 0.06 | O52: --- | P52: --- | Q52: --- | R52: Mud Shot | S52: Stone Edge
A53: 52 | B53: Meowth | C53: Normal | E53: Gato | F53: Disponível | G53: 50 Meowth Candy | H53: 5,00 km | I53: 80 | J53: 104 | K53: 94 | L53: 756 | M53: 0.4 | N53: 0.15 | O53: 1.98 | P53: 2.24 | Q53: 2.11 | R53: Scratch | S53: Body Slam
A54: 53 | B54: Persian | C54: Normal | E54: Gato Elegante | F54: Disponível | G54: Não Evolui | H54: Não possui ovos | I54: 130 | J54: 156 | K54: 146 | L54: 1632 | M54: 0.16 | N54: 0.07 | O54: --- | P54: --- | Q54: --- | R54: Scratch | S54: Play Rough
A55: 54 | B55: Psyduck | C55: Água | E55: Pato | F55: Disponível | G55: 50 Psyduck Candy | H55: 5,00 km | I55: 100 | J55: 132 | K55: 112 | L55: 1110 | M55: 0.4 | N55: 0.1 | O55: 2.22 | P55: 2.29 | Q55: 2.255 | R55: Water Gun | S55: Cross Chop
A56: 55 | B56: Golduck | C56: Água | E56: Pato | F56: Disponível | G56: Não Evolui | H56: Não possui ovos | I56: 160 | J56: 194 | K56: 176 | L56: 2387 | M56: 0.16 | N56: 0.06 | O56: --- | P56: --- | Q56: --- | R56: Water Gun | S56: Hydro Pump
A57: 56 | B57: Mankey | C57: Lutador | E57: Macaco Porco | F57: Disponível | G57: 50 Mankey Candy | H57: 5,00 km | I57: 80 | J57: 112 | K57: 96 | L57: 879 | M57: 0.4 | N57: 0.1 | O57: 2.15 | P57: 2.28 | Q57: 2.215 | R57: Scratch | S57: Cross Chop
A58: 57 | B58: Primeape | C58: Lutador | E58: Macaco Porco | F58: Disponível | G58: Não Evolui | H58: Não possui ovos | I58: 130 | J58: 178 | K58: 150 | L58: 1865 | M58: 0.16 | N58: 0.06 | O58: --- | P58: --- | Q58: --- | R58: Low Kick | S58: Cross Chop
A59: 58 | B59: Growlithe | C59: Fogo | E59: Cachorro | F59: Disponível | G59: 50 Growlithe Candy | H59: 5,00 km | I59: 110 | J59: 156 | K59: 110 | L59: 1335 | M59: 0.24 | N59: 0.1 | O59: 2.25 | P59: 2.36 | Q59: 2.305 | R59: Bite | S59: Body Slam
A60: 59 | B60: Arcanine | C60: Fogo | E60: Lendário | F60: Disponível | G60: Não Evolui | H60: Não possui ovos | I60: 180 | J60: 230 | K60: 180 | L60: 2984 | M60: 0.08 | N60: 0.06 | O60: --- | P60: --- | Q60: --- | R60: Fire Fang | S60: Fire Blast
A61: 60 | B61: Poliwag | C61: Água | E61: Girino | F61: Disponível | G61: 25 Poliwag Candy | H61: 5,00 km | I61: 80 | J61: 108 | K61: 98 | L61: 796 | M61: 0.4 | N61: 0.15 | O61: 1.72 | P61: 1.89 | Q61: 1.805 | R61: Bubble | S61: Body Slam
A62: 61 | B62: Poliwhirl | C62: Água | E62: Girino | F62: Disponível | G62: 100 Poliwag Candy | H62: Não possui ovos | I62: 130 | J62: 132 | K62: 132 | L62: 1340 | M62: 0.2 | N62: 0.07 | O62: 1.9 | P62: 1.96 | Q62: 1.93 | R62: Bubble | S62: Mud Bomb
A63: 62 | B63: Poliwrath | C63: Água | D63: Lutador | E63: Girino | F63: Disponível | G63: Não Evolui | H63: Não possui ovos | I63: 180 | J63: 180 | K63: 202 | L63: 2505 | M63: 0.1 | N63: 0.05 | O63: --- | P63: --- | Q63: --- | R63: Bubble | S63: Hydro Pump
A64: 63 | B64: Abra | C64: Psíquico | E64: Psíquico | F64: Disponível | G64: 25 Abra Candy | H64: 5,00 km | I64: 50 | J64: 110 | K64: 76 | L64: 600 | M64: 0.4 | N64: 0.99 | O64: 1.36 | P64: 2 | Q64: 1.68 | R64: Zen Headbutt | S64: Psyshock
A65: 64 | B65: Kadabra | C65: Psíquico | E65: Psíquico | F65: Disponível | G65: 100 Abra Candy | H65: Não possui ovos | I65: 80 | J65: 150 | K65: 112 | L65: 1132 | M65: 0.2 | N65: 0.07 | O65: 1.41 | P65: 1.65 | Q65: 1.53 | R65: Psycho Cut | S65: Shadow Ball
A66: 65 | B66: Alakazam | C66: Psíquico | E66: Psíquico | F66: Disponível | G66: Não Evolui | H66: Não possui ovos | I66: 110 | J66: 186 | K66: 152 | L66: 1814 | M66: 0.1 | N66: 0.05 | O66: --- | P66: --- | Q66: --- | R66: Psycho Cut | S66: Psychic
A67: 66 | B67: Machop | C67: Lutador | E67: Superpotência | F67: Disponível | G67: 25 Machop Candy | H67: 5,00 km | I67: 140 | J67: 118 | K67: 96 | L67: 1090 | M67: 0.4 | N67: 0.1 | O67: 1.62 | P67: 1.67 | Q67: 1.645 | R67: Low Kick | S67: Cross Chop
A68: 67 | B68: Machoke | C68: Lutador | E68: Superpotência | F68: Disponível | G68: 100 Machop Candy | H68: Não possui ovos | I68: 160 | J68: 154 | K68: 144 | L68: 1761 | M68: 0.2 | N68: 0.07 | O68: 1.48 | P68: 1.7 | Q68: 1.59 | R68: Low Kick | S68: Cross Chop
A69: 68 | B69: Machamp | C69: Lutador | E69: Superpotência | F69: Disponível | G69: Não Evolui | H69: Não possui ovos | I69: 180 | J69: 198 | K69: 180 | L69: 2594 | M69: 0.1 | N69: 0.05 | O69: --- | P69: --- | Q69: --- | R69: Karate Chop | S69: Cross Chop
A70: 69 | B70: Bellsprout | C70: Grama | D70: Venenoso | E70: Flor | F70: Disponível | G70: 25 Bellsprout Candy | H70: 5,00 km | I70: 100 | J70: 158 | K70: 78 | L70: 1117 | M70: 0.4 | N70: 0.15 | O70: 1.54 | P70: 1.6 | Q70: 1.57 | R70: Vine Whip | S70: Power Whip
A71: 70 | B71: Weepinbell | C71: Grama | D71: Venenoso | E71: Papa-Mosca | F71: Disponível | G71: 100 Bellsprout Candy | H71: Não possui ovos | I71: 130 | J71: 190 | K71: 110 | L71: 1724 | M71: 0.2 | N71: 0.07 | O71: 1.47 | P71: 1.52 | Q71: 1.495 | R71: Razor Leaf | S71: Power Whip
A72: 71 | B72: Victreebel | C72: Grama | D72: Venenoso | E72: Papa-Mosca | F72: Disponível | G72: Não Evolui | H72: Não possui ovos | I72: 160 | J72: 222 | K72: 152 | L72: 2531 | M72: 0.1 | N72: 0.05 | O72: --- | P72: --- | Q72: --- | R72: Razor Leaf | S72: Solar Beam
A73: 72 | B73: Tentacool | C73: Água | D73: Venenoso | E73: Água-Viva | F73: Disponível | G73: 50 Tentacool Candy | H73: 5,00 km | I73: 80 | J73: 106 | K73: 136 | L73: 905 | M73: 0.4 | N73: 0.15 | O73: 2.47 | P73: 2.6 | Q73: 2.535 | R73: Bubble | S73: Water Pulse
A74: 73 | B74: Tentacruel | C74: Água | D74: Venenoso | E74: Água-Viva | F74: Disponível | G74: Não Evolui | H74: Não possui ovos | I74: 160 | J74: 170 | K74: 196 | L74: 2220 | M74: 0.16 | N74: 0.07 | O74: --- | P74: --- | Q74: --- | R74: Poison Jab | S74: Hydro Pump
A75: 74 | B75: Geodude | C75: Pedra | D75: Terra | E75: Rocha | F75: Disponível | G75: 25 Geodude Candy | H75: 2,00 km | I75: 80 | J75: 106 | K75: 118 | L75: 849 | M75: 0.4 | N75: 0.1 | O75: 1.71 | P75: 1.76 | Q75: 1.735 | R75: Rock Throw | S75: Dig
A76: 75 | B76: Graveler | C76: Pedra | D76: Terra | E76: Rocha | F76: Disponível | G76: 100 Geodude Candy | H76: Não possui ovos | I76: 110 | J76: 142 | K76: 156 | L76: 1434 | M76: 0.2 | N76: 0.07 | O76: 1.63 | P76: 1.72 | Q76: 1.675 | R76: Mud Shot | S76: Stone Edge
A77: 76 | B77: Golem | C77: Pedra | D77: Terra | E77: Megaton | F77: Disponível | G77: Não Evolui | H77: Não possui ovos | I77: 160 | J77: 176 | K77: 198 | L77: 2303 | M77: 0.1 | N77: 0.05 | O77: --- | P77: --- | Q77: --- | R77: Mud Shot | S77: Stone Edge
A78: 77 | B78: Ponyta | C78: Fogo | E78: Cavalo de Fogo | F78: Disponível | G78: 50 Ponyta Candy | H78: 5,00 km | I78: 100 | J78: 168 | K78: 138 | L78: 1516 | M78: 0.32 | N78: 0.1 | O78: 1.47 | P78: 1.6 | Q78: 1.535 | R78: Ember | S78: Fire Blast
A79: 78 | B79: Rapidash | C79: Fogo | E79: Cavalo de Fogo | F79: Disponível | G79: Não Evolui | H79: Não possui ovos | I79: 130 | J79: 200 | K79: 170 | L79: 2199 | M79: 0.12 | N79: 0.06 | O79: --- | P79: --- | Q79: --- | R79: Ember | S79: Fire Blast
A80: 79 | B80: Slowpoke | C80: Água | D80: Psíquico | E80: Dopado | F80: Disponível | G80: 50 Slowpoke Candy | H80: 5,00 km | I80: 180 | J80: 110 | K80: 110 | L80: 1219 | M80: 0.4 | N80: 0.1 | O80: 2.19 | P80: 2.21 | Q80: 2.2 | R80: Water Gun | S80: Psychic
A81: 80 | B81: Slowbro | C81: Água | D81: Psíquico | E81: Caranguejo do Eremita | F81: Disponível | G81: Não Evolui | H81: Não possui ovos | I81: 190 | J81: 184 | K81: 198 | L81: 2597 | M81: 0.16 | N81: 0.06 | O81: --- | P81: --- | Q81: --- | R81: Water Gun | S81: Psychic
A82: 81 | B82: Magnemite | C82: Elétrico | D82: Metal | E82: Magnético | F82: Disponível | G82: 50 Magnemite Candy | H82: 5,00 km | I82: 50 | J82: 128 | K82: 138 | L82: 891 | M82: 0.4 | N82: 0.1 | O82: 2.16 | P82: 2.2 | Q82: 2.18 | R82: Spark | S82: Thunderbolt
A83: 82 | B83: Magneton | C83: Elétrico | D83: Metal | E83: Magnético | F83: Disponível | G83: Não Evolui | H83: Não possui ovos | I83: 100 | J83: 186 | K83: 180 | L83: 1880 | M83: 0.16 | N83: 0.06 | O83: --- | P83: --- | Q83: --- | R83: Spark | S83: Flash Cannon
A84: 83 | B84: Farfetch'd | C84: Normal | D84: Voador | E84: Pato Selvagem | F84: Somente na Ásia | G84: Não Evolui | H84: 5,00 km | I84: 104 | J84: 138 | K84: 132 | L84: 1264 | M84: 0.24 | N84: 0.09 | O84: --- | P84: --- | Q84: --- | R84: --- | S84: ---
A85: 84 | B85: Doduo | C85: Normal | D85: Voador | E85: Pássaro Duplo | F85: Disponível | G85: 50 Doduo Candy | H85: 5,00 km | I85: 70 | J85: 126 | K85: 96 | L85: 855 | M85: 0.4 | N85: 0.1 | O85: 2.11 | P85: 2.24 | Q85: 2.175 | R85: Peck | S85: Aerial Ace
A86: 85 | B86: Dodrio | C86: Normal | D86: Voador | E86: Pássaro Triplo | F86: Disponível | G86: Não Evolui | H86: Não possui ovos | I86: 120 | J86: 182 | K86: 150 | L86: 1836 | M86: 0.16 | N86: 0.06 | O86: --- | P86: --- | Q86: --- | R86: Feint Attack | S86: Drill Peck
A87: 86 | B87: Seel | C87: Água | E87: Leão Marinho | F87: Disponível | G87: 50 Seel Candy | H87: 5,00 km | I87: 130 | J87: 104 | K87: 138 | L87: 1107 | M87: 0.4 | N87: 0.09 | O87: 1.96 | P87: 2.03 | Q87: 1.995 | R87: --- | S87: ---
A88: 87 | B88: Dewgong | C88: Água | D88: Gelo | E88: Leão Marinho | F88: Disponível | G88: Não Evolui | H88: Não possui ovos | I88: 180 | J88: 156 | K88: 192 | L88: 2146 | M88: 0.16 | N88: 0.06 | O88: --- | P88: --- | Q88: --- | R88: Frost Breath | S88: Blizzard
A89: 88 | B89: Grimer | C89: Venenoso | E89: Lodo | F89: Disponível | G89: 50 Grimer Candy | H89: 5,00 km | I89: 160 | J89: 124 | K89: 110 | L89: 1284 | M89: 0.4 | N89: 0.1 | O89: 2.03 | P89: 2.17 | Q89: 2.1 | R89: Acid | S89: Sludge Bomb
A90: 89 | B90: Muk | C90: Venenoso | E90: Lodo | F90: Disponível | G90: Não Evolui | H90: Não possui ovos | I90: 210 | J90: 180 | K90: 188 | L90: 2603 | M90: 0.16 | N90: 0.06 | O90: --- | P90: --- | Q90: --- | R90: Poison Jab | S90: Gunk Shot
A91: 90 | B91: Shellder | C91: Água | E91: Concha Dupla | F91: Disponível | G91: 50 Shellder Candy | H91: 5,00 km | I91: 60 | J91: 120 | K91: 112 | L91: 823 | M91: 0.4 | N91: 0.1 | O91: 2.62 | P91: 2.65 | Q91: 2.635 | R91: Tackle | S91: Water Pulse
A92: 91 | B92: Cloyster | C92: Água | D92: Gelo | E92: Concha Dupla | F92: Disponível | G92: Não Evolui | H92: Não possui ovos | I92: 100 | J92: 196 | K92: 196 | L92: 2053 | M92: 0.16 | N92: 0.06 | O92: --- | P92: --- | Q92: --- | R92: Frost Breath | S92: Blizzard
A93: 92 | B93: Gastly | C93: Fantasma | D93: Venenoso | E93: Gás | F93: Disponível | G93: 25 Gastly Candy | H93: 5,00 km | I93: 60 | J93: 136 | K93: 82 | L93: 804 | M93: 0.32 | N93: 0.1 | O93: 1.75 | P93: 1.83 | Q93: 1.79 | R93: Lick | S93: Sludge Bomb
A94: 93 | B94: Haunter | C94: Fantasma | D94: Venenoso | E94: Gás | F94: Disponível | G94: 100 Gastly Candy | H94: Não possui ovos | I94: 90 | J94: 172 | K94: 118 | L94: 1380 | M94: 0.16 | N94: 0.07 | O94: 1.53 | P94: 1.8 | Q94: 1.665 | R94: Shadow Claw | S94: Sludge Bomb
A95: 94 | B95: Gengar | C95: Fantasma | D95: Venenoso | E95: Sombra | F95: Disponível | G95: Não Evolui | H95: Não possui ovos | I95: 120 | J95: 204 | K95: 156 | L95: 2078 | M95: 0.08 | N95: 0.05 | O95: --- | P95: --- | Q95: --- | R95: Shadow Claw | S95: Sludge Wave
A96: 95 | B96: Onix | C96: Pedra | D96: Terra | E96: Serpente de Rocha | F96: Disponível | G96: Não Evolui | H96: 10,00 km | I96: 70 | J96: 90 | K96: 186 | L96: 857 | M96: 0.16 | N96: 0.09 | O96: --- | P96: --- | Q96: --- | R96: Rock Throw | S96: Stone Edge
A97: 96 | B97: Drowzee | C97: Psíquico | E97: Hipnose | F97: Disponível | G97: 50 Drowzee Candy | H97: 5,00 km | I97: 120 | J97: 104 | K97: 140 | L97: 1075 | M97: 0.4 | N97: 0.1 | O97: 2.05 | P97: 2.11 | Q97: 2.08 | R97: Pound | S97: Psychic
A98: 97 | B98: Hypno | C98: Psíquico | E98: Hipnose | F98: Disponível | G98: Não Evolui | H98: Não possui ovos | I98: 170 | J98: 162 | K98: 196 | L98: 2184 | M98: 0.16 | N98: 0.06 | O98: --- | P98: --- | Q98: --- | R98: Zen Headbutt | S98: Psychic
A99: 98 | B99: Krabby | C99: Água | E99: Caranguejo de Rio | F99: Disponível | G99: 50 Krabby Candy | H99: 5,00 km | I99: 60 | J99: 116 | K99: 110 | L99: 792 | M99: 0.4 | N99: 0.15 | O99: 2.35 | P99: 2.4 | Q99: 2.375 | R99: Bubble | S99: Water Pulse
A100: 99 | B100: Kingler | C100: Água | E100: Pinça | F100: Disponível | G100: Não Evolui | H100: Não possui ovos | I100: 110 | J100: 178 | K100: 168 | L100: 1823 | M100: 0.16 | N100: 0.07 | O100: --- | P100: --- | Q100: --- | R100: Metal Claw | S100: X Scissor
A101: 100 | B101: Voltorb | C101: Elétrico | E101: Bola | F101: Disponível | G101: 50 Voltorb Candy | H101: 5,00 km | I101: 80 | J101: 102 | K101: 124 | L101: 840 | M101: 0.4 | N101: 0.1 | O101: 2.01 | P101: 2.03 | Q101: 2.02 | R101: Spark | S101: Thunderbolt
A102: 101 | B102: Electrode | C102: Elétrico | E102: Bola | F102: Disponível | G102: Não Evolui | H102: Não possui ovos | I102: 120 | J102: 150 | K102: 174 | L102: 1646 | M102: 0.16 | N102: 0.06 | O102: --- | P102: --- | Q102: --- | R102: Spark | S102: Thunderbolt
A103: 102 | B103: Exeggcute | C103: Grama | D103: Psíquico | E103: Ovo | F103: Disponível | G103: 50 Exeggcute Candy | H103: 5,00 km | I103: 120 | J103: 110 | K103: 132 | L103: 1100 | M103: 0.4 | N103: 0.1 | O103: 2.7 | P103: 3.18 | Q103: 2.94 | R103: Confusion | S103: Psychic
A104: 103 | B104: Exeggutor | C104: Grama | D104: Psíquico | E104: Côco | F104: Disponível | G104: Não Evolui | H104: Não possui ovos | I104: 190 | J104: 232 | K104: 164 | L104: 2955 | M104: 0.16 | N104: 0.06 | O104: --- | P104: --- | Q104: --- | R104: Zen Headbutt | S104: Solar Beam
A105: 104 | B105: Cubone | C105: Terra | E105: Solitário | F105: Disponível | G105: 50 Cubone Candy | H105: 5,00 km | I105: 100 | J105: 102 | K105: 150 | L105: 1007 | M105: 0.32 | N105: 0.1 | O105: 1.65 | P105: 1.67 | Q105: 1.66 | R105: Mud Slap | S105: Bone Club
A106: 105 | B106: Marowak | C106: Terra | E106: Osso Keeper | F106: Disponível | G106: Não Evolui | H106: Não possui ovos | I106: 120 | J106: 140 | K106: 202 | L106: 1657 | M106: 0.12 | N106: 0.06 | O106: --- | P106: --- | Q106: --- | R106: Mud Slap | S106: Earthquake
A107: 106 | B107: Hitmonlee | C107: Lutador | E107: Chutador | F107: Disponível | G107: Não Evolui | H107: 10,00 km | I107: 100 | J107: 148 | K107: 172 | L107: 1493 | M107: 0.16 | N107: 0.09 | O107: --- | P107: --- | Q107: --- | R107: Low Kick | S107: Stone Edge
A108: 107 | B108: Hitmonchan | C108: Lutador | E108: Boxeador | F108: Disponível | G108: Não Evolui | H108: 10,00 km | I108: 100 | J108: 138 | K108: 204 | L108: 1517 | M108: 0.16 | N108: 0.09 | O108: --- | P108: --- | Q108: --- | R108: Rock Smash | S108: Brick Break
A109: 108 | B109: Lickitung | C109: Normal | E109: Lambedor | F109: Disponível | G109: Não Evolui | H109: 5,00 km | I109: 180 | J109: 126 | K109: 160 | L109: 1627 | M109: 0.16 | N109: 0.09 | O109: --- | P109: --- | Q109: --- | R109: Zen Headbutt | S109: Hyper Beam
A110: 109 | B110: Koffing | C110: Venenoso | E110: Gás Venenoso | F110: Disponível | G110: 50 Koffing Candy | H110: 5,00 km | I110: 80 | J110: 136 | K110: 142 | L110: 1152 | M110: 0.4 | N110: 0.1 | O110: 1.95 | P110: 2.1 | Q110: 2.025 | R110: Acid | S110: Sludge Bomb
A111: 110 | B111: Weezing | C111: Venenoso | E111: Gás Venenoso | F111: Disponível | G111: Não Evolui | H111: Não possui ovos | I111: 130 | J111: 190 | K111: 198 | L111: 2250 | M111: 0.16 | N111: 0.06 | O111: --- | P111: --- | Q111: --- | R111: Acid | S111: Sludge Bomb
A112: 111 | B112: Rhyhorn | C112: Terra | D112: Pedra | E112: Chifres | F112: Disponível | G112: 50 Rhyhorn Candy | H112: 5,00 km | I112: 160 | J112: 110 | K112: 116 | L112: 1182 | M112: 0.4 | N112: 0.1 | O112: 1.9 | P112: 1.91 | Q112: 1.905 | R112: Mud Slap | S112: Stomp
A113: 112 | B113: Rhydon | C113: Terra | D113: Pedra | E113: Broca | F113: Disponível | G113: Não Evolui | H113: Não possui ovos | I113: 210 | J113: 116 | K113: 160 | L113: 2243 | M113: 0.16 | N113: 0.06 | O113: --- | P113: --- | Q113: --- | R113: Mud Slap | S113: Stone Edge
A114: 113 | B114: Chansey | C114: Normal | E114: Ovo | F114: Disponível | G114: Não Evolui | H114: 10,00 km | I114: 500 | J114: 40 | K114: 60 | L114: 675 | M114: 0.16 | N114: 0.09 | O114: --- | P114: --- | Q114: --- | R114: Pound | S114: Psychic
A115: 114 | B115: Tangela | C115: Grama | E115: Videira | F115: Disponível | G115: Não Evolui | H115: 5,00 km | I115: 130 | J115: 164 | K115: 152 | L115: 1740 | M115: 0.32 | N115: 0.09 | O115: --- | P115: --- | Q115: --- | R115: Vine Whip | S115: Solar Beam
A116: 115 | B116: Kangaskhan | C116: Normal | E116: Parente | F116: Somente na Austrália | G116: Não Evolui | H116: 5,00 km | I116: 210 | J116: 142 | K116: 178 | L116: 2043 | M116: 0.16 | N116: 0.09 | O116: --- | P116: --- | Q116: --- | R116: Mud Slap | S116: Earthquake
A117: 116 | B117: Horsea | C117: Água | E117: Dragão | F117: Disponível | G117: 50 Horsea Candy | H117: 5,00 km | I117: 60 | J117: 122 | K117: 100 | L117: 795 | M117: 0.4 | N117: 0.1 | O117: 2.19 | P117: 2.23 | Q117: 2.21 | R117: Water Gun | S117: Dragon Pulse
A118: 117 | B118: Seadra | C118: Água | E118: Dragão | F118: Disponível | G118: Não Evolui | H118: Não possui ovos | I118: 110 | J118: 176 | K118: 150 | L118: 1713 | M118: 0.16 | N118: 0.06 | O118: --- | P118: --- | Q118: --- | R118: Water Gun | S118: Hydro Pump
A119: 118 | B119: Goldeen | C119: Água | E119: Peixe-Dourado | F119: Disponível | G119: 50 Goldeen Candy | H119: 5,00 km | I119: 90 | J119: 112 | K119: 126 | L119: 965 | M119: 0.4 | N119: 0.15 | O119: 2.14 | P119: 2.24 | Q119: 2.19 | R119: Mud Shot | S119: Aqua Tail
A120: 119 | B120: Seaking | C120: Água | E120: Peixe-Dourado | F120: Disponível | G120: Não Evolui | H120: Não possui ovos | I120: 160 | J120: 172 | K120: 160 | L120: 2044 | M120: 0.16 | N120: 0.07 | O120: --- | P120: --- | Q120: --- | R120: Poison Jab | S120: Megahorn
A121: 120 | B121: Staryu | C121: Água | E121: Formato De Estrela | F121: Disponível | G121: 50 Staryu Candy | H121: 5,00 km | I121: 60 | J121: 130 | K121: 128 | L121: 938 | M121: 0.4 | N121: 0.15 | O121: 2.35 | P121: 2.44 | Q121: 2.395 | R121: Water Gun | S121: Power Gem
A122: 121 | B122: Starmie | C122: Água | D122: Psíquico | E122: Misterioso | F122: Disponível | G122: Não Evolui | H122: Não possui ovos | I122: 120 | J122: 194 | K122: 192 | L122: 2182 | M122: 0.16 | N122: 0.06 | O122: --- | P122: --- | Q122: --- | R122: Water Gun | S122: Hydro Pump
A123: 122 | B123: Mr. Mime | C123: Psíquico | E123: Barreira | F123: Somente na Europa | G123: Não Evolui | H123: 10,00 km | I123: 80 | J123: 154 | K123: 196 | L123: 1494 | M123: 0.24 | N123: 0.09 | O123: --- | P123: --- | Q123: --- | R123: Zen Headbutt | S123: Psychic
A124: 123 | B124: Scyther | C124: Inseto | D124: Voador | E124: Mantis | F124: Disponível | G124: Não Evolui | H124: 10,00 km | I124: 140 | J124: 176 | K124: 180 | L124: 2074 | M124: 0.24 | N124: 0.09 | O124: --- | P124: --- | Q124: --- | R124: Steel Wing | S124: Bug Buzz
A125: 124 | B125: Jynx | C125: Gelo | D125: Psíquico | E125: Forma Humana | F125: Disponível | G125: Não Evolui | H125: 10,00 km | I125: 130 | J125: 172 | K125: 134 | L125: 1717 | M125: 0.24 | N125: 0.09 | O125: --- | P125: --- | Q125: --- | R125: Frost Breath | S125: Psyschock
A126: 125 | B126: Electabuzz | C126: Elétrico | E126: Elétrico | F126: Disponível | G126: Não Evolui | H126: 10,00 km | I126: 130 | J126: 198 | K126: 160 | L126: 2119 | M126: 0.24 | N126: 0.09 | O126: --- | P126: --- | Q126: --- | R126: Thunder Shock | S126: Thunder
A127: 126 | B127: Magmar | C127: Fogo | E127: Cospe-Fogo | F127: Disponível | G127: Não Evolui | H127: 10,00 km | I127: 130 | J127: 214 | K127: 158 | L127: 2265 | M127: 0.24 | N127: 0.09 | O127: --- | P127: --- | Q127: --- | R127: Ember | S127: Fire blast
A128: 127 | B128: Pinsir | C128: Inseto | E128: Besouro de Veado | F128: Disponível | G128: Não Evolui | H128: 10,00 km | I128: 130 | J128: 184 | K128: 186 | L128: 2122 | M128: 0.24 | N128: 0.09 | O128: --- | P128: --- | Q128: --- | R128: Rock Smash | S128: X Scissor
A129: 128 | B129: Tauros | C129: Normal | E129: Touro Selvagem | F129: Somente na América do Norte | G129: Não Evolui | H129: 5,00 km | I129: 150 | J129: 148 | K129: 184 | L129: 1845 | M129: 0.24 | N129: 0.09 | O129: --- | P129: --- | Q129: --- | R129: Tackle | S129: Earthquake
A130: 129 | B130: Magikarp | C130: Água | E130: Peixe | F130: Disponível | G130: 400 Magikarp Candy | H130: 2,00 km | I130: 40 | J130: 42 | K130: 84 | L130: 263 | M130: 0.56 | N130: 0.15 | O130: 10.1 | P130: 11.96 | Q130: 11.03 | R130: Splash | S130: Struggle
A131: 130 | B131: Gyarados | C131: Água | D131: Voador | E131: Atroz | F131: Disponível | G131: Não Evolui | H131: Não possui ovos | I131: 190 | J131: 192 | K131: 196 | L131: 2689 | M131: 0.08 | N131: 0.07 | O131: --- | P131: --- | Q131: --- | R131: Dragon Breath/Bite | S131: Hydro Pump
A132: 131 | B132: Lapras | C132: Água | D132: Gelo | E132: Transporte | F132: Disponível | G132: Não Evolui | H132: 10,00 km | I132: 260 | J132: 186 | K132: 190 | L132: 2981 | M132: 0.16 | N132: 0.09 | O132: --- | P132: --- | Q132: --- | R132: Frost Breath | S132: Blizzard
A133: 132 | B133: Ditto | C133: Normal | E133: Transformador | F133: Não disponível | G133: Não Evolui | H133: Não possui ovos | I133: 96 | J133: 110 | K133: 110 | L133: 920 | M133: 0.16 | N133: 0.1 | O133: --- | P133: --- | Q133: --- | R133: --- | S133: ---
A134: 133 | B134: Eevee | C134: Normal | E134: Evolução | F134: Disponível | G134: 25 Eevee Candy | H134: 10,00 km | I134: 110 | J134: 114 | K134: 128 | L134: 1077 | M134: 0.32 | N134: 0.1 | O134: 2.01 | P134: 2.67 | Q134: 2.34 | R134: Tackle | S134: Body Slam
A135: 134 | B135: Vaporeon | C135: Água | E135: Jato de Bolhas | F135: Disponível | G135: Não Evolui | H135: Não possui ovos | I135: 260 | J135: 186 | K135: 168 | L135: 2816 | M135: 0.12 | N135: 0.06 | O135: --- | P135: --- | Q135: --- | R135: Water Gun | S135: Hydro Pump
A136: 135 | B136: Jolteon | C136: Elétrico | E136: Relâmpago | F136: Disponível | G136: Não Evolui | H136: Não possui ovos | I136: 130 | J136: 192 | K136: 174 | L136: 2140 | M136: 0.12 | N136: 0.06 | O136: --- | P136: --- | Q136: --- | R136: Thunder Shock | S136: Thunder
A137: 136 | B137: Flareon | C137: Fogo | E137: Chama | F137: Disponível | G137: Não Evolui | H137: Não possui ovos | I137: 130 | J137: 238 | K137: 178 | L137: 2643 | M137: 0.12 | N137: 0.06 | O137: --- | P137: --- | Q137: --- | R137: Ember | S137: Fire blast
A138: 137 | B138: Porygon | C138: Normal | E138: Virtual | F138: Disponível | G138: Não Evolui | H138: 5,00 km | I138: 130 | J138: 156 | K138: 158 | L138: 1692 | M138: 0.32 | N138: 0.09 | O138: --- | P138: --- | Q138: --- | R138: Tackle | S138: Discharge
A139: 138 | B139: Omanyte | C139: Pedra | D139: Água | E139: Espiral | F139: Disponível | G139: 50 Omanyte Candy | H139: 10,00 km | I139: 70 | J139: 132 | K139: 160 | L139: 1120 | M139: 0.32 | N139: 0.09 | O139: 1.99 | P139: 2.12 | Q139: 2.055 | R139: Water Gun | S139: Ancient Power
A140: 139 | B140: Omastar | C140: Pedra | D140: Água | E140: Espiral | F140: Disponível | G140: Não Evolui | H140: Não possui ovos | I140: 140 | J140: 180 | K140: 202 | L140: 2234 | M140: 0.12 | N140: 0.05 | O140: --- | P140: --- | Q140: --- | R140: Water Gun | S140: Hydro Pump
A141: 140 | B141: Kabuto | C141: Pedra | D141: Água | E141: Marisco | F141: Disponível | G141: 50 Kabuto Candy | H141: 10,00 km | I141: 60 | J141: 148 | K141: 142 | L141: 1105 | M141: 0.32 | N141: 0.09 | O141: 1.97 | P141: 2.37 | Q141: 2.17 | R141: Scratch | S141: Aqua Jet
A142: 141 | B142: Kabutops | C142: Pedra | D142: Água | E142: Marisco | F142: Disponível | G142: Não Evolui | H142: Não possui ovos | I142: 120 | J142: 190 | K142: 190 | L142: 2130 | M142: 0.12 | N142: 0.05 | O142: --- | P142: --- | Q142: --- | R142: Mud Shot | S142: Stone Edge
A143: 142 | B143: Aerodactyl | C143: Pedra | D143: Voador | E143: Fóssil | F143: Disponível | G143: Não Evolui | H143: 10,00 km | I143: 160 | J143: 182 | K143: 162 | L143: 2165 | M143: 0.16 | N143: 0.09 | O143: --- | P143: --- | Q143: --- | R143: Bite | S143: Hyper Beam
A144: 143 | B144: Snorlax | C144: Normal | E144: Adormecido | F144: Disponível | G144: Não Evolui | H144: 10,00 km | I144: 320 | J144: 180 | K144: 180 | L144: 3113 | M144: 0.16 | N144: 0.09 | O144: --- | P144: --- | Q144: --- | R144: Zen Headbutt | S144: Body Slam
A145: 144 | B145: Articuno | C145: Gelo | D145: Voador | E145: Congelar | F145: Não disponível | G145: Não Evolui | H145: Não possui ovos | I145: 180 | J145: 198 | K145: 242 | L145: 2978 | M145: 0 | N145: 0.1 | O145: --- | P145: --- | Q145: --- | R145: --- | S145: ---
A146: 145 | B146: Zapdos | C146: Elétrico | D146: Voador | E146: Elétrico | F146: Não disponível | G146: Não Evolui | H146: Não possui ovos | I146: 180 | J146: 232 | K146: 194 | L146: 3114 | M146: 0 | N146: 0.1 | O146: --- | P146: --- | Q146: --- | R146: --- | S146: ---
A147: 146 | B147: Moltres | C147: Fogo | D147: Voador | E147: Chama | F147: Não disponível | G147: Não Evolui | H147: Não possui ovos | I147: 180 | J147: 242 | K147: 194 | L147: 3240 | M147: 0 | N147: 0.1 | O147: --- | P147: --- | Q147: --- | R147: --- | S147: ---
A148: 147 | B148: Dratini | C148: Dragão | E148: Dragão | F148: Disponível | G148: 25 Dratini Candy | H148: 10,00 km | I148: 82 | J148: 128 | K148: 110 | L148: 983 | M148: 0.32 | N148: 0.09 | O148: 1.8 | P148: 1.85 | Q148: 1.825 | R148: Dragon Breath | S148: Aqua Tail
A149: 148 | B149: Dragonair | C149: Dragão | E149: Dragão | F149: Disponível | G149: 100 Dratini Candy | H149: Não possui ovos | I149: 122 | J149: 170 | K149: 152 | L149: 1748 | M149: 0.08 | N149: 0.06 | O149: 2.03 | P149: 2.08 | Q149: 2.055 | R149: Dragon Breath | S149: Dragon Pulse
A150: 149 | B150: Dragonite | C150: Dragão | D150: Voador | E150: Dragão | F150: Disponível | G150: Não Evolui | H150: Não possui ovos | I150: 182 | J150: 250 | K150: 212 | L150: 3500 | M150: 0.04 | N150: 0.05 | O150: --- | P150: --- | Q150: --- | R150: Dragon Breath | S150: Dragon Claw
A151: 150 | B151: Mewtwo | C151: Psíquico | E151: Genético | F151: Não disponível | G151: Não Evolui | H151: Não possui ovos | I151: 212 | J151: 284 | K151: 202 | L151: 4145 | M151: 0 | N151: 0.1 | O151: --- | P151: --- | Q151: --- | R151: --- | S151: ---
A152: 151 | B152: Mew | C152: Psíquico | E152: Novas Espécies | F152: Não disponível | G152: Não Evolui | H152: Não possui ovos | I152: 200 | J152: 220 | K152: 220 | L152: 3299 | M152: 0 | N152: 0.1 | O152: --- | P152: --- | Q152: --- | R152: --- | S152: ---

Sheet IVs
A1: CP Multiplier by Level | C1: Dust | D1: HP Min | E1: HP Máx | F1: Int? | G1: HP | J1: Lvl | N1: HP | S1: Base | X1: Real | AC1: CÁLCULOS | AO1: Sandshrew1 | AP1: Contagem | AQ1: Contagem
A2: 1 | B2: 0.094 | C2: 200 | D2: =ROUNDDOWN(($V$2)*$B2,0) -> 9 | E2: =ROUNDDOWN(($V$2+15)*$B2,0) -> 10 | F2: TRUE | G2: =IF(C2<>$Z$3,"---",IF(AND($Y$3>=D2,$Y$3<=E2),$B2,"---")) -> --- | I2: MÍN INT | J2: =IF(MIN(IF($F$2:$F$81=TRUE,$G$2:$G$81))=0,"",MIN(IF($F$2:$F$81=TRUE,$G$2:$G$81))) -> 0.3210876 | K2: =IFERROR(INDEX($A$2:$A$81,MATCH(J2,$B$2:$B$81,0)),"") -> 6 | N2: =K2 -> 6 | O2: =K3 ->  | P2: =K4 -> 5.5 | Q2: =K5 -> 6.5 | S2: 27 | T2: =VLOOKUP($S2,Pokémons!$A:$K,10,FALSE) -> 90 | U2: =VLOOKUP($S2,Pokémons!$A:$K,11,FALSE) -> 114 | V2: =VLOOKUP($S2,Pokémons!$A:$K,9,FALSE) -> 100 | X2: CP | Y2: HP | Z2: Stardust | AA2: PowerUp | AC2: Comb | AD2: ATK | AE2: DEF | AF2: STM | AG2: MÍN INT | AH2: MÁX INT | AI2: MÍN QUE | AJ2: MÁX QUE | AK2: Combinação | AL2: Soma | AM2: % | AO2: # | AP2: # | AQ2: #
A3: 1.5 | B3: 0.1351374 | C3: 200 | D3: 13 | E3: 15 | F3: FALSE | G3: =IF(C3<>$Z$3,"---",IF(AND($Y$3>=D3,$Y$3<=E3),$B3,"---")) -> --- | I3: MÁX INT | J3: =IF(IF(MAX(IF($F$2:$F$81=TRUE,$G$2:$G$81))=J2,"",MAX(IF($F$2:$F$81=TRUE,$G$2:$G$81)))=0,"",IF(MAX(IF($F$2:$F$81=TRUE,$G$2:$G$81))=J2,"",MAX(IF($F$2:$F$81=TRUE,$G$2:$G$81)))) ->  | K3: =IFERROR(INDEX($A$2:$A$81,MATCH(J3,$B$2:$B$81,0)),"") ->  | M3: 1 | N3: =IF(N$2="","",IFERROR(IF(ROUNDDOWN(($V$2+$M3)*$J$2,0)<>$Y$3,"",$M3),"")) ->  | O3: =IF(O$2="","",IFERROR(IF(ROUNDDOWN(($V$2+$M3)*$J$3,0)<>$Y$3,"",$M3),"")) ->  | P3: =IF(P$2="","",IFERROR(IF(ROUNDDOWN(($V$2+$M3)*$J$4,0)<>$Y$3,"",$M3),"")) ->  | Q3: =IF(Q$2="","",IFERROR(IF(ROUNDDOWN(($V$2+$M3)*$J$5,0)<>$Y$3,"",$M3),"")) ->  | S3: Pokémon | T3: Attack | U3: Defense | V3: HP | X3: 115 | Y3: 34 | Z3: 600 | AA3: =IF(AA4=TRUE,"Sim","Não") -> Sim | AC3: 0-0-0 | AD3: 0 | AE3: 0 | AF3: 0 | AG3: =IF($J$2="","---",ROUNDDOWN(($T$2+$AD3)*($U$2+$AE3)^0.5*($V$2+$AF3)^0.5*$J$2^2/10,0)) -> 99 | AH3: =IF($J$3="","---",ROUNDDOWN(($T$2+$AD3)*($U$2+$AE3)^0.5*($V$2+$AF3)^0.5*$J$3^2/10,0)) -> --- | AI3: =IF($J$4="","---",ROUNDDOWN(($T$2+$AD3)*($U$2+$AE3)^0.5*($V$2+$AF3)^0.5*$J$4^2/10,0)) -> 90 | AJ3: =IF($J$5="","---",ROUNDDOWN(($T$2+$AD3)*($U$2+$AE3)^0.5*($V$2+$AF3)^0.5*$J$5^2/10,0)) -> 108 | AK3: =IF(COUNTIF($N$3:$Q$17,AF3)=0,"---",IF(OR(AG3=$X$3,AH3=$X$3,AI3=$X$3,AJ3=$X$3),AD3&" - "&AE3&" - "&AF3,"---")) -> --- | AL3: =IF(AK3<>"---",AD3+AE3+AF3,"---") -> --- | AM3: =IFERROR(IF(OR(AL3/45<$T$8,AL3/45>$U$8,AP3="---"),"---",AL3/45),"---") -> --- | AO3: 1 | AP3: =IF(AO3>0,AC3,"---") -> 0-0-0 | AQ3: =IF(AND(AO3>0,AP3<>"---"),IF(AM3="---",0,1),0) -> 0
A4: 2 | B4: 0.1663979 | C4: 200 | D4: 16 | E4: 19 | F4: TRUE | G4: =IF(C4<>$Z$3,"---",IF(AND($Y$3>=D4,$Y$3<=E4),$B4,"---")) -> --- | I4: MÍN QUE | J4: =IF(MIN(IF($F$2:$F$81=FALSE,$G$2:$G$81))=0,"",MIN(IF($F$2:$F$81=FALSE,$G$2:$G$81))) -> 0.3060574 | K4: =IF($AA$4=FALSE,"",IFERROR(INDEX($A$2:$A$81,MATCH(J4,$B$2:$B$81,0)),"")) -> 5.5 | M4: 2 | Q4: 2 | AA4: TRUE | AC4: 1-0-0 | AD4: 1 | AE4: 0 | AF4: 0 | AG4: =IF($J$2="","---",ROUNDDOWN(($T$2+$AD4)*($U$2+$AE4)^0.5*($V$2+$AF4)^0.5*$J$2^2/10,0)) -> 100 | AH4: =IF($J$3="","---",ROUNDDOWN(($T$2+$AD4)*($U$2+$AE4)^0.5*($V$2+$AF4)^0.5*$J$3^2/10,0)) -> --- | AI4: =IF($J$4="","---",ROUNDDOWN(($T$2+$AD4)*($U$2+$AE4)^0.5*($V$2+$AF4)^0.5*$J$4^2/10,0)) -> 91 | AJ4: =IF($J$5="","---",ROUNDDOWN(($T$2+$AD4)*($U$2+$AE4)^0.5*($V$2+$AF4)^0.5*$J$5^2/10,0)) -> 109 | AK4: =IF(COUNTIF($N$3:$Q$17,AF4)=0,"---",IF(OR(AG4=$X$3,AH4=$X$3,AI4=$X$3,AJ4=$X$3),AD4&" - "&AE4&" - "&AF4,"---")) -> --- | AL4: =IF(AK4<>"---",AD4+AE4+AF4,"---") -> --- | AM4: =IFERROR(IF(OR(AL4/45<$T$8,AL4/45>$U$8,AP4="---"),"---",AL4/45),"---") -> --- | AO4: 1 | AP4: =IF(AO4>0,AC4,"---") -> 1-0-0 | AQ4: =IF(AND(AO4>0,AP4<>"---"),IF(AM4="---",0,1),0) -> 0
A5: 2.5 | B5: 0.1926509 | C5: 200 | D5: 19 | E5: 22 | F5: FALSE | G5: --- | I5: MÁX QUE | J5: =IF(IF(MAX(IF($F$2:$F$81=FALSE,$G$2:$G$81))=J4,"",MAX(IF($F$2:$F$81=FALSE,$G$2:$G$81)))=0,"",IF(MAX(IF($F$2:$F$81=FALSE,$G$2:$G$81))=J4,"",MAX(IF($F$2:$F$81=FALSE,$G$2:$G$81)))) -> 0.335445 | K5: =IF($AA$4=FALSE,"",IFERROR(INDEX($A$2:$A$81,MATCH(J5,$B$2:$B$81,0)),"")) -> 6.5 | M5: 3 | Q5: 3 | AC5: 2-0-0 | AD5: 2 | AE5: 0 | AF5: 0 | AG5: 101 | AH5: --- | AI5: 92 | AJ5: 110 | AK5: --- | AL5: --- | AM5: --- | AO5: 1 | AP5: 2-0-0 | AQ5: 0
A6: 3 | B6: 0.2157325 | C6: 400 | D6: 21 | E6: 24 | F6: TRUE | G6: --- | M6: 4 | Q6: 4 | S6: # Combinações | T6: Mín | U6: Máx | V6: Méd | W6: Lvl | Y6: Lvl | Z6: Possib | AC6: 3-0-0 | AD6: 3 | AE6: 0 | AF6: 0 | AG6: 102 | AH6: --- | AI6: 93 | AJ6: 111 | AK6: --- | AL6: --- | AM6: --- | AO6: 1 | AP6: 3-0-0 | AQ6: 0
A7: 3.5 | B7: 0.2365727 | C7: 400 | D7: 23 | E7: 27 | F7: FALSE | G7: --- | M7: 5 | S7: =COUNTIF($AM$3:$AM$4098,"<>"&"---") -> 238 | T7: =MIN($AM$3:$AM$4098) -> 0.1555555556 | U7: =MAX($AM$3:$AM$4098) -> 0.9111111111 | V7: =IFERROR(AVERAGE($AM$3:$AM$4098),0) -> 0.4885154062 | W7: =IF(Z11=Z12,Z11,Z11&" - "&Z12) -> 5,5 - 6,5 | X7: MÍN INT | Y7: =K2 -> 6 | Z7: =COUNTIFS($AG$3:$AG$4098,">0",$AM$3:$AM$4098,"<>"&"---") -> 238 | AC7: 4-0-0 | AD7: 4 | AE7: 0 | AF7: 0 | AG7: 103 | AH7: --- | AI7: 94 | AJ7: 112 | AK7: --- | AL7: --- | AM7: --- | AO7: 1 | AP7: 4-0-0 | AQ7: 0
A8: 4 | B8: 0.2557201 | C8: 400 | D8: 25 | E8: 29 | F8: TRUE | G8: --- | M8: 6 | N8: 6 | S8: Anterior | T8: 0 | U8: 1 | X8: MÁX INT | Y8: =K3 ->  | Z8: =COUNTIFS($AH$3:$AH$4098,">0",$AM$3:$AM$4098,"<>"&"---") -> 0 | AC8: 5-0-0 | AD8: 5 | AE8: 0 | AF8: 0 | AG8: 104 | AH8: --- | AI8: 95 | AJ8: 114 | AK8: --- | AL8: --- | AM8: --- | AO8: 1 | AP8: 5-0-0 | AQ8: 0
A9: 4.5 | B9: 0.2735304 | C9: 400 | D9: 27 | E9: 31 | F9: FALSE | G9: --- | M9: 7 | N9: 7 | S9: =IF(S7=0,"NENHUM RESULTADO ENCONTRADO","") ->  | X9: MÍN QUE | Y9: =K4 -> 5.5 | Z9: =COUNTIFS($AI$3:$AI$4098,">0",$AM$3:$AM$4098,"<>"&"---") -> 238 | AC9: 6-0-0 | AD9: 6 | AE9: 0 | AF9: 0 | AG9: 105 | AH9: --- | AI9: 96 | AJ9: 115 | AK9: --- | AL9: --- | AM9: --- | AO9: 1 | AP9: 6-0-0 | AQ9: 0
A10: 5 | B10: 0.2902499 | C10: 600 | D10: 29 | E10: 33 | F10: TRUE | G10: --- | M10: 8 | N10: 8 | X10: MÁX QUE | Y10: =K5 -> 6.5 | Z10: =COUNTIFS($AJ$3:$AJ$4098,">0",$AM$3:$AM$4098,"<>"&"---") -> 238 | AC10: 7-0-0 | AD10: 7 | AE10: 0 | AF10: 0 | AG10: 106 | AH10: --- | AI10: 97 | AJ10: 116 | AK10: --- | AL10: --- | AM10: --- | AO10: 1 | AP10: 7-0-0 | AQ10: 0
A11: 5.5 | B11: 0.3060574 | C11: 600 | D11: 30 | E11: 35 | F11: FALSE | G11: 0.3060574 | M11: 9 | N11: 9 | Y11: Mínimo | Z11: =MIN(IF(Z7:Z10<>0,Y7:Y10)) -> 5.5 | AC11: 8-0-0 | AD11: 8 | AE11: 0 | AF11: 0 | AG11: 107 | AH11: --- | AI11: 98 | AJ11: 117 | AK11: --- | AL11: --- | AM11: --- | AO11: 1 | AP11: 8-0-0 | AQ11: 0
A12: 6 | B12: 0.3210876 | C12: 600 | D12: 32 | E12: 36 | F12: TRUE | G12: 0.3210876 | M12: 10 | Y12: Máximo | Z12: =MAX(IF(Z7:Z10<>0,Y7:Y10)) -> 6.5 | AC12: 9-0-0 | AD12: 9 | AE12: 0 | AF12: 0 | AG12: 108 | AH12: --- | AI12: 99 | AJ12: 118 | AK12: --- | AL12: --- | AM12: --- | AO12: 1 | AP12: 9-0-0 | AQ12: 0
A13: 6.5 | B13: 0.335445 | C13: 600 | D13: 33 | E13: 38 | F13: FALSE | G13: 0.335445 | M13: 11 | AC13: 10-0-0 | AD13: 10 | AE13: 0 | AF13: 0 | AG13: 110 | AH13: --- | AI13: 100 | AJ13: 120 | AK13: --- | AL13: --- | AM13: --- | AO13: 1 | AP13: 10-0-0 | AQ13: 0
A14: 7 | B14: 0.3492127 | C14: 800 | D14: 34 | E14: 40 | F14: TRUE | G14: --- | M14: 12 | P14: 12 | AC14: 11-0-0 | AD14: 11 | AE14: 0 | AF14: 0 | AG14: 111 | AH14: --- | AI14: 101 | AJ14: 121 | AK14: --- | AL14: --- | AM14: --- | AO14: 1 | AP14: 11-0-0 | AQ14: 0
A15: 7.5 | B15: 0.3624578 | C15: 800 | D15: 36 | E15: 41 | F15: FALSE | G15: --- | M15: 13 | P15: 13 | AC15: 12-0-0 | AD15: 12 | AE15: 0 | AF15: 0 | AG15: 112 | AH15: --- | AI15: 102 | AJ15: 122 | AK15: --- | AL15: --- | AM15: --- | AO15: 1 | AP15: 12-0-0 | AQ15: 0
A16: 8 | B16: 0.3752356 | C16: 800 | D16: 37 | E16: 43 | F16: TRUE | G16: --- | M16: 14 | P16: 14 | AC16: 13-0-0 | AD16: 13 | AE16: 0 | AF16: 0 | AG16: 113 | AH16: --- | AI16: 103 | AJ16: 123 | AK16: --- | AL16: --- | AM16: --- | AO16: 1 | AP16: 13-0-0 | AQ16: 0
A17: 8.5 | B17: 0.3875924 | C17: 800 | D17: 38 | E17: 44 | F17: FALSE | G17: --- | M17: 15 | AC17: 14-0-0 | AD17: 14 | AE17: 0 | AF17: 0 | AG17: 114 | AH17: --- | AI17: 104 | AJ17: 124 | AK17: --- | AL17: --- | AM17: --- | AO17: 1 | AP17: 14-0-0 | AQ17: 0
A18: 9 | B18: 0.3995673 | C18: 1000 | D18: 39 | E18: 45 | F18: TRUE | G18: --- | AC18: 15-0-0 | AD18: 15 | AE18: 0 | AF18: 0 | AG18: 115 | AH18: --- | AI18: 105 | AJ18: 126 | AK18: --- | AL18: --- | AM18: --- | AO18: 1 | AP18: 15-0-0 | AQ18: 0
A19: 9.5 | B19: 0.4111936 | C19: 1000 | D19: 41 | E19: 47 | F19: FALSE | G19: --- | AC19: 0-1-0 | AD19: 0 | AE19: 1 | AF19: 0 | AG19: 99 | AH19: --- | AI19: 90 | AJ19: 108 | AK19: --- | AL19: --- | AM19: --- | AO19: 1 | AP19: 0-1-0 | AQ19: 0
A20: 10 | B20: 0.4225 | C20: 1000 | D20: 42 | E20: 48 | F20: TRUE | G20: --- | AC20: 1-1-0 | AD20: 1 | AE20: 1 | AF20: 0 | AG20: 100 | AH20: --- | AI20: 91 | AJ20: 109 | AK20: --- | AL20: --- | AM20: --- | AO20: 1 | AP20: 1-1-0 | AQ20: 0
A21: 10.5 | B21: 0.4335117 | C21: 1000 | D21: 43 | E21: 49 | F21: FALSE | G21: --- | AC21: 2-1-0 | AD21: 2 | AE21: 1 | AF21: 0 | AG21: 101 | AH21: --- | AI21: 92 | AJ21: 111 | AK21: --- | AL21: --- | AM21: --- | AO21: 1 | AP21: 2-1-0 | AQ21: 0
A22: 11 | B22: 0.4431076 | C22: 1300 | D22: 44 | E22: 50 | F22: TRUE | G22: --- | AC22: 3-1-0 | AD22: 3 | AE22: 1 | AF22: 0 | AG22: 102 | AH22: --- | AI22: 93 | AJ22: 112 | AK22: --- | AL22: --- | AM22: --- | AO22: 1 | AP22: 3-1-0 | AQ22: 0
A23: 11.5 | B23: 0.45306 | C23: 1300 | D23: 45 | E23: 52 | F23: FALSE | G23: --- | AC23: 4-1-0 | AD23: 4 | AE23: 1 | AF23: 0 | AG23: 103 | AH23: --- | AI23: 94 | AJ23: 113 | AK23: --- | AL23: --- | AM23: --- | AO23: 1 | AP23: 4-1-0 | AQ23: 0
A24: 12 | B24: 0.4627984 | C24: 1300 | D24: 46 | E24: 53 | F24: TRUE | G24: --- | AC24: 5-1-0 | AD24: 5 | AE24: 1 | AF24: 0 | AG24: 105 | AH24: --- | AI24: 95 | AJ24: 114 | AK24: --- | AL24: --- | AM24: --- | AO24: 1 | AP24: 5-1-0 | AQ24: 0
A25: 12.5 | B25: 0.4723361 | C25: 1300 | D25: 47 | E25: 54 | F25: FALSE | G25: --- | AC25: 6-1-0 | AD25: 6 | AE25: 1 | AF25: 0 | AG25: 106 | AH25: --- | AI25: 96 | AJ25: 115 | AK25: --- | AL25: --- | AM25: --- | AO25: 1 | AP25: 6-1-0 | AQ25: 0
A26: 13 | B26: 0.481685 | C26: 1600 | D26: 48 | E26: 55 | F26: TRUE | G26: --- | AC26: 7-1-0 | AD26: 7 | AE26: 1 | AF26: 0 | AG26: 107 | AH26: --- | AI26: 97 | AJ26: 117 | AK26: --- | AL26: --- | AM26: --- | AO26: 1 | AP26: 7-1-0 | AQ26: 0
A27: 13.5 | B27: 0.4908558 | C27: 1600 | D27: 49 | E27: 56 | F27: FALSE | G27: --- | AC27: 8-1-0 | AD27: 8 | AE27: 1 | AF27: 0 | AG27: 108 | AH27: --- | AI27: 98 | AJ27: 118 | AK27: --- | AL27: --- | AM27: --- | AO27: 1 | AP27: 8-1-0 | AQ27: 0
A28: 14 | B28: 0.4998584 | C28: 1600 | D28: 49 | E28: 57 | F28: TRUE | G28: --- | AC28: 9-1-0 | AD28: 9 | AE28: 1 | AF28: 0 | AG28: 109 | AH28: --- | AI28: 99 | AJ28: 119 | AK28: --- | AL28: --- | AM28: --- | AO28: 1 | AP28: 9-1-0 | AQ28: 0
A29: 14.5 | B29: 0.5087018 | C29: 1600 | D29: 50 | E29: 58 | F29: FALSE | G29: --- | AC29: 10-1-0 | AD29: 10 | AE29: 1 | AF29: 0 | AG29: 110 | AH29: --- | AI29: 100 | AJ29: 120 | AK29: --- | AL29: --- | AM29: --- | AO29: 1 | AP29: 10-1-0 | AQ29: 0
A30: 15 | B30: 0.517394 | C30: 1900 | D30: 51 | E30: 59 | F30: TRUE | G30: --- | AC30: 11-1-0 | AD30: 11 | AE30: 1 | AF30: 0 | AG30: 111 | AH30: --- | AI30: 101 | AJ30: 121 | AK30: --- | AL30: --- | AM30: --- | AO30: 1 | AP30: 11-1-0 | AQ30: 0
A31: 15.5 | B31: 0.5259425 | C31: 1900 | D31: 52 | E31: 60 | F31: FALSE | G31: --- | AC31: 12-1-0 | AD31: 12 | AE31: 1 | AF31: 0 | AG31: 112 | AH31: --- | AI31: 102 | AJ31: 123 | AK31: --- | AL31: --- | AM31: --- | AO31: 1 | AP31: 12-1-0 | AQ31: 0
A32: 16 | B32: 0.5343543 | C32: 1900 | D32: 53 | E32: 61 | F32: TRUE | G32: --- | AC32: 13-1-0 | AD32: 13 | AE32: 1 | AF32: 0 | AG32: 113 | AH32: --- | AI32: 103 | AJ32: 124 | AK32: --- | AL32: --- | AM32: --- | AO32: 1 | AP32: 13-1-0 | AQ32: 0
A33: 16.5 | B33: 0.5426358 | C33: 1900 | D33: 54 | E33: 62 | F33: FALSE | G33: --- | AC33: 14-1-0 | AD33: 14 | AE33: 1 | AF33: 0 | AG33: 114 | AH33: --- | AI33: 104 | AJ33: 125 | AK33: --- | AL33: --- | AM33: --- | AO33: 1 | AP33: 14-1-0 | AQ33: 0
A34: 17 | B34: 0.5507927 | C34: 2200 | D34: 55 | E34: 63 | F34: TRUE | G34: --- | AC34: 15-1-0 | AD34: 15 | AE34: 1 | AF34: 0 | AG34: 116 | AH34: --- | AI34: 105 | AJ34: 126 | AK34: --- | AL34: --- | AM34: --- | AO34: 1 | AP34: 15-1-0 | AQ34: 0
A35: 17.5 | B35: 0.5588306 | C35: 2200 | D35: 55 | E35: 64 | F35: FALSE | G35: --- | AC35: 0-2-0 | AD35: 0 | AE35: 2 | AF35: 0 | AG35: 99 | AH35: --- | AI35: 90 | AJ35: 109 | AK35: --- | AL35: --- | AM35: --- | AO35: 1 | AP35: 0-2-0 | AQ35: 0
A36: 18 | B36: 0.5667545 | C36: 2200 | D36: 56 | E36: 65 | F36: TRUE | G36: --- | AC36: 1-2-0 | AD36: 1 | AE36: 2 | AF36: 0 | AG36: 101 | AH36: --- | AI36: 91 | AJ36: 110 | AK36: --- | AL36: --- | AM36: --- | AO36: 1 | AP36: 1-2-0 | AQ36: 0
A37: 18.5 | B37: 0.5745692 | C37: 2200 | D37: 57 | E37: 66 | F37: FALSE | G37: --- | AC37: 2-2-0 | AD37: 2 | AE37: 2 | AF37: 0 | AG37: 102 | AH37: --- | AI37: 92 | AJ37: 111 | AK37: --- | AL37: --- | AM37: --- | AO37: 1 | AP37: 2-2-0 | AQ37: 0
A38: 19 | B38: 0.5822789 | C38: 2500 | D38: 58 | E38: 66 | F38: TRUE | G38: --- | AC38: 3-2-0 | AD38: 3 | AE38: 2 | AF38: 0 | AG38: 103 | AH38: --- | AI38: 93 | AJ38: 112 | AK38: --- | AL38: --- | AM38: --- | AO38: 1 | AP38: 3-2-0 | AQ38: 0
A39: 19.5 | B39: 0.5898879 | C39: 2500 | D39: 58 | E39: 67 | F39: FALSE | G39: --- | AC39: 4-2-0 | AD39: 4 | AE39: 2 | AF39: 0 | AG39: 104 | AH39: --- | AI39: 94 | AJ39: 113 | AK39: --- | AL39: --- | AM39: --- | AO39: 1 | AP39: 4-2-0 | AQ39: 0
A40: 20 | B40: 0.5974 | C40: 2500 | D40: 59 | E40: 68 | F40: TRUE | G40: --- | AC40: 5-2-0 | AD40: 5 | AE40: 2 | AF40: 0 | AG40: 105 | AH40: --- | AI40: 95 | AJ40: 115 | AK40: --- | AL40: --- | AM40: --- | AO40: 1 | AP40: 5-2-0 | AQ40: 0
A41: 20.5 | B41: 0.6048188 | C41: 2500 | D41: 60 | E41: 69 | F41: FALSE | G41: --- | AC41: 6-2-0 | AD41: 6 | AE41: 2 | AF41: 0 | AG41: 106 | AH41: --- | AI41: 96 | AJ41: 116 | AK41: --- | AL41: --- | AM41: --- | AO41: 1 | AP41: 6-2-0 | AQ41: 0
A42: 21 | B42: 0.6121573 | C42: 3000 | D42: 61 | E42: 70 | F42: TRUE | G42: --- | AC42: 7-2-0 | AD42: 7 | AE42: 2 | AF42: 0 | AG42: 107 | AH42: --- | AI42: 97 | AJ42: 117 | AK42: --- | AL42: --- | AM42: --- | AO42: 1 | AP42: 7-2-0 | AQ42: 0
A43: 21.5 | B43: 0.6194041 | C43: 3000 | D43: 61 | E43: 71 | F43: FALSE | G43: --- | AC43: 8-2-0 | AD43: 8 | AE43: 2 | AF43: 0 | AG43: 108 | AH43: --- | AI43: 98 | AJ43: 118 | AK43: --- | AL43: --- | AM43: --- | AO43: 1 | AP43: 8-2-0 | AQ43: 0
A44: 22 | B44: 0.6265671 | C44: 3000 | D44: 62 | E44: 72 | F44: TRUE | G44: --- | AC44: 9-2-0 | AD44: 9 | AE44: 2 | AF44: 0 | AG44: 109 | AH44: --- | AI44: 99 | AJ44: 119 | AK44: --- | AL44: --- | AM44: --- | AO44: 1 | AP44: 9-2-0 | AQ44: 0
A45: 22.5 | B45: 0.6336492 | C45: 3000 | D45: 63 | E45: 72 | F45: FALSE | G45: --- | AC45: 10-2-0 | AD45: 10 | AE45: 2 | AF45: 0 | AG45: 111 | AH45: --- | AI45: 100 | AJ45: 121 | AK45: --- | AL45: --- | AM45: --- | AO45: 1 | AP45: 10-2-0 | AQ45: 0
A46: 23 | B46: 0.640653 | C46: 3500 | D46: 64 | E46: 73 | F46: TRUE | G46: --- | AC46: 11-2-0 | AD46: 11 | AE46: 2 | AF46: 0 | AG46: 112 | AH46: --- | AI46: 101 | AJ46: 122 | AK46: --- | AL46: --- | AM46: --- | AO46: 1 | AP46: 11-2-0 | AQ46: 0
A47: 23.5 | B47: 0.647581 | C47: 3500 | D47: 64 | E47: 74 | F47: FALSE | G47: --- | AC47: 12-2-0 | AD47: 12 | AE47: 2 | AF47: 0 | AG47: 113 | AH47: --- | AI47: 102 | AJ47: 123 | AK47: --- | AL47: --- | AM47: --- | AO47: 1 | AP47: 12-2-0 | AQ47: 0
A48: 24 | B48: 0.6544356 | C48: 3500 | D48: 65 | E48: 75 | F48: TRUE | G48: --- | AC48: 13-2-0 | AD48: 13 | AE48: 2 | AF48: 0 | AG48: 114 | AH48: --- | AI48: 103 | AJ48: 124 | AK48: --- | AL48: --- | AM48: --- | AO48: 1 | AP48: 13-2-0 | AQ48: 0
A49: 24.5 | B49: 0.6612193 | C49: 3500 | D49: 66 | E49: 76 | F49: FALSE | G49: --- | AC49: 14-2-0 | AD49: 14 | AE49: 2 | AF49: 0 | AG49: 115 | AH49: --- | AI49: 104 | AJ49: 126 | AK49: --- | AL49: --- | AM49: --- | AO49: 1 | AP49: 14-2-0 | AQ49: 0
A50: 25 | B50: 0.667934 | C50: 4000 | D50: 66 | E50: 76 | F50: TRUE | G50: --- | AC50: 15-2-0 | AD50: 15 | AE50: 2 | AF50: 0 | AG50: 116 | AH50: --- | AI50: 105 | AJ50: 127 | AK50: --- | AL50: --- | AM50: --- | AO50: 1 | AP50: 15-2-0 | AQ50: 0
A51: 25.5 | B51: 0.6745819 | C51: 4000 | D51: 67 | E51: 77 | F51: FALSE | G51: --- | AC51: 0-3-0 | AD51: 0 | AE51: 3 | AF51: 0 | AG51: 100 | AH51: --- | AI51: 91 | AJ51: 109 | AK51: --- | AL51: --- | AM51: --- | AO51: 1 | AP51: 0-3-0 | AQ51: 0
A52: 26 | B52: 0.6811649 | C52: 4000 | D52: 68 | E52: 78 | F52: TRUE | G52: --- | AC52: 1-3-0 | AD52: 1 | AE52: 3 | AF52: 0 | AG52: 101 | AH52: --- | AI52: 92 | AJ52: 110 | AK52: --- | AL52: --- | AM52: --- | AO52: 1 | AP52: 1-3-0 | AQ52: 0
A53: 26.5 | B53: 0.6876849 | C53: 4000 | D53: 68 | E53: 79 | F53: FALSE | G53: --- | AC53: 2-3-0 | AD53: 2 | AE53: 3 | AF53: 0 | AG53: 102 | AH53: --- | AI53: 93 | AJ53: 111 | AK53: --- | AL53: --- | AM53: --- | AO53: 1 | AP53: 2-3-0 | AQ53: 0
A54: 27 | B54: 0.6941437 | C54: 4500 | D54: 69 | E54: 79 | F54: TRUE | G54: --- | AC54: 3-3-0 | AD54: 3 | AE54: 3 | AF54: 0 | AG54: 103 | AH54: --- | AI54: 94 | AJ54: 113 | AK54: --- | AL54: --- | AM54: --- | AO54: 1 | AP54: 3-3-0 | AQ54: 0
A55: 27.5 | B55: 0.7005429 | C55: 4500 | D55: 70 | E55: 80 | F55: FALSE | G55: --- | AC55: 4-3-0 | AD55: 4 | AE55: 3 | AF55: 0 | AG55: 104 | AH55: --- | AI55: 95 | AJ55: 114 | AK55: --- | AL55: --- | AM55: --- | AO55: 1 | AP55: 4-3-0 | AQ55: 0
A56: 28 | B56: 0.7068842 | C56: 4500 | D56: 70 | E56: 81 | F56: TRUE | G56: --- | AC56: 5-3-0 | AD56: 5 | AE56: 3 | AF56: 0 | AG56: 105 | AH56: --- | AI56: 96 | AJ56: 115 | AK56: --- | AL56: --- | AM56: --- | AO56: 1 | AP56: 5-3-0 | AQ56: 0
A57: 28.5 | B57: 0.7131691 | C57: 4500 | D57: 71 | E57: 82 | F57: FALSE | G57: --- | AC57: 6-3-0 | AD57: 6 | AE57: 3 | AF57: 0 | AG57: 107 | AH57: --- | AI57: 97 | AJ57: 116 | AK57: --- | AL57: --- | AM57: --- | AO57: 1 | AP57: 6-3-0 | AQ57: 0
A58: 29 | B58: 0.7193991 | C58: 5000 | D58: 71 | E58: 82 | F58: TRUE | G58: --- | AC58: 7-3-0 | AD58: 7 | AE58: 3 | AF58: 0 | AG58: 108 | AH58: --- | AI58: 98 | AJ58: 118 | AK58: --- | AL58: --- | AM58: --- | AO58: 1 | AP58: 7-3-0 | AQ58: 0
A59: 29.5 | B59: 0.7255756 | C59: 5000 | D59: 72 | E59: 83 | F59: FALSE | G59: --- | AC59: 8-3-0 | AD59: 8 | AE59: 3 | AF59: 0 | AG59: 109 | AH59: --- | AI59: 99 | AJ59: 119 | AK59: --- | AL59: --- | AM59: --- | AO59: 1 | AP59: 8-3-0 | AQ59: 0
A60: 30 | B60: 0.7317 | C60: 5000 | D60: 73 | E60: 84 | F60: TRUE | G60: --- | AC60: 9-3-0 | AD60: 9 | AE60: 3 | AF60: 0 | AG60: 110 | AH60: --- | AI60: 100 | AJ60: 120 | AK60: --- | AL60: --- | AM60: --- | AO60: 1 | AP60: 9-3-0 | AQ60: 0
A61: 30.5 | B61: 0.7377735 | C61: 5000 | D61: 73 | E61: 84 | F61: FALSE | G61: --- | AC61: 10-3-0 | AD61: 10 | AE61: 3 | AF61: 0 | AG61: 111 | AH61: --- | AI61: 101 | AJ61: 121 | AK61: --- | AL61: --- | AM61: --- | AO61: 1 | AP61: 10-3-0 | AQ61: 0
A62: 31 | B62: 0.7377695 | C62: 6000 | D62: 73 | E62: 84 | F62: TRUE | G62: --- | AC62: 11-3-0 | AD62: 11 | AE62: 3 | AF62: 0 | AG62: 112 | AH62: --- | AI62: 102 | AJ62: 122 | AK62: --- | AL62: --- | AM62: --- | AO62: 1 | AP62: 11-3-0 | AQ62: 0
A63: 31.5 | B63: 0.7407856 | C63: 6000 | D63: 74 | E63: 85 | F63: FALSE | G63: --- | AC63: 12-3-0 | AD63: 12 | AE63: 3 | AF63: 0 | AG63: 113 | AH63: --- | AI63: 103 | AJ63: 124 | AK63: --- | AL63: --- | AM63: --- | AO63: 1 | AP63: 12-3-0 | AQ63: 0
A64: 32 | B64: 0.7437894 | C64: 6000 | D64: 74 | E64: 85 | F64: TRUE | G64: --- | AC64: 13-3-0 | AD64: 13 | AE64: 3 | AF64: 0 | AG64: 114 | AH64: --- | AI64: 104 | AJ64: 125 | AK64: --- | AL64: --- | AM64: --- | AO64: 1 | AP64: 13-3-0 | AQ64: 0
A65: 32.5 | B65: 0.7467812 | C65: 6000 | D65: 74 | E65: 85 | F65: FALSE | G65: --- | AC65: 14-3-0 | AD65: 14 | AE65: 3 | AF65: 0 | AG65: 115 | AH65: --- | AI65: 105 | AJ65: 126 | AK65: --- | AL65: --- | AM65: --- | AO65: 1 | AP65: 14-3-0 | AQ65: 0
A66: 33 | B66: 0.749761 | C66: 7000 | D66: =ROUNDDOWN(($V$2)*$B66,0) -> 74 | E66: =ROUNDDOWN(($V$2+15)*$B66,0) -> 86 | F66: TRUE | G66: --- | AC66: 15-3-0 | AD66: 15 | AE66: 3 | AF66: 0 | AG66: 117 | AH66: --- | AI66: 106 | AJ66: 127 | AK66: --- | AL66: --- | AM66: --- | AO66: 1 | AP66: 15-3-0 | AQ66: 0
A67: 33.5 | B67: 0.7527291 | C67: 7000 | D67: 75 | E67: 86 | F67: FALSE | G67: =IF(C67<>$Z$3,"---",IF(AND($Y$3>=D67,$Y$3<=E67),$B67,"---")) -> --- | AC67: 0-4-0 | AD67: 0 | AE67: 4 | AF67: 0 | AG67: 100 | AH67: --- | AI67: 91 | AJ67: 110 | AK67: --- | AL67: --- | AM67: --- | AO67: 1 | AP67: 0-4-0 | AQ67: 0
A68: 34 | B68: 0.7556855 | C68: 7000 | D68: 75 | E68: 86 | F68: TRUE | G68: --- | AC68: 1-4-0 | AD68: 1 | AE68: 4 | AF68: 0 | AG68: =IF($J$2="","---",ROUNDDOWN(($T$2+$AD68)*($U$2+$AE68)^0.5*($V$2+$AF68)^0.5*$J$2^2/10,0)) -> 101 | AH68: =IF($J$3="","---",ROUNDDOWN(($T$2+$AD68)*($U$2+$AE68)^0.5*($V$2+$AF68)^0.5*$J$3^2/10,0)) -> --- | AI68: =IF($J$4="","---",ROUNDDOWN(($T$2+$AD68)*($U$2+$AE68)^0.5*($V$2+$AF68)^0.5*$J$4^2/10,0)) -> 92 | AJ68: =IF($J$5="","---",ROUNDDOWN(($T$2+$AD68)*($U$2+$AE68)^0.5*($V$2+$AF68)^0.5*$J$5^2/10,0)) -> 111 | AK68: =IF(COUNTIF($N$3:$Q$17,AF68)=0,"---",IF(OR(AG68=$X$3,AH68=$X$3,AI68=$X$3,AJ68=$X$3),AD68&" - "&AE68&" - "&AF68,"---")) -> --- | AL68: =IF(AK68<>"---",AD68+AE68+AF68,"---") -> --- | AM68: =IFERROR(IF(OR(AL68/45<$T$8,AL68/45>$U$8,AP68="---"),"---",AL68/45),"---") -> --- | AO68: 1 | AP68: =IF(AO68>0,AC68,"---") -> 1-4-0 | AQ68: =IF(AND(AO68>0,AP68<>"---"),IF(AM68="---",0,1),0) -> 0
A69: 34.5 | B69: 0.7586304 | C69: 7000 | D69: 75 | E69: 87 | F69: FALSE | G69: --- | AC69: 2-4-0 | AD69: 2 | AE69: 4 | AF69: 0 | AG69: 103 | AH69: --- | AI69: 93 | AJ69: 112 | AK69: --- | AL69: --- | AM69: --- | AO69: 1 | AP69: 2-4-0 | AQ69: 0
A70: 35 | B70: 0.7615638 | C70: 8000 | D70: 76 | E70: 87 | F70: TRUE | G70: --- | AC70: 3-4-0 | AD70: 3 | AE70: 4 | AF70: 0 | AG70: 104 | AH70: --- | AI70: 94 | AJ70: 113 | AK70: --- | AL70: --- | AM70: --- | AO70: 1 | AP70: 3-4-0 | AQ70: 0
A71: 35.5 | B71: 0.7644861 | C71: 8000 | D71: 76 | E71: 87 | F71: FALSE | G71: --- | AC71: 4-4-0 | AD71: 4 | AE71: 4 | AF71: 0 | AG71: 105 | AH71: --- | AI71: 95 | AJ71: 114 | AK71: --- | AL71: --- | AM71: --- | AO71: 1 | AP71: 4-4-0 | AQ71: 0
A72: 36 | B72: 0.7673972 | C72: 8000 | D72: 76 | E72: 88 | F72: TRUE | G72: --- | AC72: 5-4-0 | AD72: 5 | AE72: 4 | AF72: 0 | AG72: 106 | AH72: --- | AI72: 96 | AJ72: 116 | AK72: --- | AL72: --- | AM72: --- | AO72: 1 | AP72: 5-4-0 | AQ72: 0
A73: 36.5 | B73: 0.7702973 | C73: 8000 | D73: 77 | E73: 88 | F73: FALSE | G73: --- | AC73: 6-4-0 | AD73: 6 | AE73: 4 | AF73: 0 | AG73: 107 | AH73: --- | AI73: 97 | AJ73: 117 | AK73: --- | AL73: --- | AM73: --- | AO73: 1 | AP73: 6-4-0 | AQ73: 0
A74: 37 | B74: 0.7731865 | C74: 9000 | D74: 77 | E74: 88 | F74: TRUE | G74: --- | AC74: 7-4-0 | AD74: 7 | AE74: 4 | AF74: 0 | AG74: 108 | AH74: --- | AI74: 98 | AJ74: 118 | AK74: --- | AL74: --- | AM74: --- | AO74: 1 | AP74: 7-4-0 | AQ74: 0
A75: 37.5 | B75: 0.776065 | C75: 9000 | D75: 77 | E75: 89 | F75: FALSE | G75: --- | AC75: 8-4-0 | AD75: 8 | AE75: 4 | AF75: 0 | AG75: 109 | AH75: --- | AI75: 99 | AJ75: 119 | AK75: --- | AL75: --- | AM75: --- | AO75: 1 | AP75: 8-4-0 | AQ75: 0
A76: 38 | B76: 0.7789328 | C76: 9000 | D76: 77 | E76: 89 | F76: TRUE | G76: --- | AC76: 9-4-0 | AD76: 9 | AE76: 4 | AF76: 0 | AG76: 110 | AH76: --- | AI76: 100 | AJ76: 121 | AK76: --- | AL76: --- | AM76: --- | AO76: 1 | AP76: 9-4-0 | AQ76: 0
A77: 38.5 | B77: 0.7817901 | C77: 9000 | D77: 78 | E77: 89 | F77: FALSE | G77: --- | AC77: 10-4-0 | AD77: 10 | AE77: 4 | AF77: 0 | AG77: 111 | AH77: --- | AI77: 101 | AJ77: 122 | AK77: --- | AL77: --- | AM77: --- | AO77: 1 | AP77: 10-4-0 | AQ77: 0
A78: 39 | B78: 0.784637 | C78: 10000 | D78: 78 | E78: 90 | F78: TRUE | G78: --- | AC78: 11-4-0 | AD78: 11 | AE78: 4 | AF78: 0 | AG78: 113 | AH78: --- | AI78: 102 | AJ78: 123 | AK78: --- | AL78: --- | AM78: --- | AO78: 1 | AP78: 11-4-0 | AQ78: 0
A79: 39.5 | B79: 0.7874736 | C79: 10000 | D79: 78 | E79: 90 | F79: FALSE | G79: --- | AC79: 12-4-0 | AD79: 12 | AE79: 4 | AF79: 0 | AG79: 114 | AH79: --- | AI79: 103 | AJ79: 124 | AK79: --- | AL79: --- | AM79: --- | AO79: 1 | AP79: 12-4-0 | AQ79: 0
A80: 40 | B80: 0.7903 | C80: 10000 | D80: 79 | E80: 90 | F80: TRUE | G80: --- | AC80: 13-4-0 | AD80: 13 | AE80: 4 | AF80: 0 | AG80: 115 | AH80: --- | AI80: 104 | AJ80: 125 | AK80: --- | AL80: --- | AM80: --- | AO80: 1 | AP80: 13-4-0 | AQ80: 0
A81: 40.5 | B81: 0.7931164 | C81: 10000 | D81: 79 | E81: 91 | F81: FALSE | G81: --- | AC81: 14-4-0 | AD81: 14 | AE81: 4 | AF81: 0 | AG81: 116 | AH81: --- | AI81: 105 | AJ81: 127 | AK81: --- | AL81: --- | AM81: --- | AO81: 1 | AP81: 14-4-0 | AQ81: 0
AC82: 15-4-0 | AD82: 15 | AE82: 4 | AF82: 0 | AG82: 117 | AH82: --- | AI82: 106 | AJ82: 128 | AK82: --- | AL82: --- | AM82: --- | AO82: 1 | AP82: 15-4-0 | AQ82: 0
AC83: 0-5-0 | AD83: 0 | AE83: 5 | AF83: 0 | AG83: 101 | AH83: --- | AI83: 91 | AJ83: 110 | AK83: --- | AL83: --- | AM83: --- | AO83: 1 | AP83: 0-5-0 | AQ83: 0
AC84: 1-5-0 | AD84: 1 | AE84: 5 | AF84: 0 | AG84: 102 | AH84: --- | AI84: 92 | AJ84: 111 | AK84: --- | AL84: --- | AM84: --- | AO84: 1 | AP84: 1-5-0 | AQ84: 0
AC85: 2-5-0 | AD85: 2 | AE85: 5 | AF85: 0 | AG85: 103 | AH85: --- | AI85: 94 | AJ85: 112 | AK85: --- | AL85: --- | AM85: --- | AO85: 1 | AP85: 2-5-0 | AQ85: 0
AC86: 3-5-0 | AD86: 3 | AE86: 5 | AF86: 0 | AG86: 104 | AH86: --- | AI86: 95 | AJ86: 114 | AK86: --- | AL86: --- | AM86: --- | AO86: 1 | AP86: 3-5-0 | AQ86: 0
AC87: 4-5-0 | AD87: 4 | AE87: 5 | AF87: 0 | AG87: 105 | AH87: --- | AI87: 96 | AJ87: 115 | AK87: --- | AL87: --- | AM87: --- | AO87: 1 | AP87: 4-5-0 | AQ87: 0
AC88: 5-5-0 | AD88: 5 | AE88: 5 | AF88: 0 | AG88: 106 | AH88: --- | AI88: 97 | AJ88: 116 | AK88: --- | AL88: --- | AM88: --- | AO88: 1 | AP88: 5-5-0 | AQ88: 0
AC89: 6-5-0 | AD89: 6 | AE89: 5 | AF89: 0 | AG89: 107 | AH89: --- | AI89: 98 | AJ89: 117 | AK89: --- | AL89: --- | AM89: --- | AO89: 1 | AP89: 6-5-0 | AQ89: 0
AC90: 7-5-0 | AD90: 7 | AE90: 5 | AF90: 0 | AG90: 109 | AH90: --- | AI90: 99 | AJ90: 119 | AK90: --- | AL90: --- | AM90: --- | AO90: 1 | AP90: 7-5-0 | AQ90: 0
AC91: 8-5-0 | AD91: 8 | AE91: 5 | AF91: 0 | AG91: 110 | AH91: --- | AI91: 100 | AJ91: 120 | AK91: --- | AL91: --- | AM91: --- | AO91: 1 | AP91: 8-5-0 | AQ91: 0
AC92: 9-5-0 | AD92: 9 | AE92: 5 | AF92: 0 | AG92: 111 | AH92: --- | AI92: 101 | AJ92: 121 | AK92: --- | AL92: --- | AM92: --- | AO92: 1 | AP92: 9-5-0 | AQ92: 0
AC93: 10-5-0 | AD93: 10 | AE93: 5 | AF93: 0 | AG93: 112 | AH93: --- | AI93: 102 | AJ93: 122 | AK93: --- | AL93: --- | AM93: --- | AO93: 1 | AP93: 10-5-0 | AQ93: 0
AC94: 11-5-0 | AD94: 11 | AE94: 5 | AF94: 0 | AG94: 113 | AH94: --- | AI94: 103 | AJ94: 123 | AK94: --- | AL94: --- | AM94: --- | AO94: 1 | AP94: 11-5-0 | AQ94: 0
AC95: 12-5-0 | AD95: 12 | AE95: 5 | AF95: 0 | AG95: 114 | AH95: --- | AI95: 104 | AJ95: 125 | AK95: --- | AL95: --- | AM95: --- | AO95: 1 | AP95: 12-5-0 | AQ95: 0
AC96: 13-5-0 | AD96: 13 | AE96: 5 | AF96: 0 | AG96: 115 | AH96: --- | AI96: 105 | AJ96: 126 | AK96: --- | AL96: --- | AM96: --- | AO96: 1 | AP96: 13-5-0 | AQ96: 0
AC97: 14-5-0 | AD97: 14 | AE97: 5 | AF97: 0 | AG97: 116 | AH97: --- | AI97: 106 | AJ97: 127 | AK97: --- | AL97: --- | AM97: --- | AO97: 1 | AP97: 14-5-0 | AQ97: 0
AC98: 15-5-0 | AD98: 15 | AE98: 5 | AF98: 0 | AG98: 118 | AH98: --- | AI98: 107 | AJ98: 128 | AK98: --- | AL98: --- | AM98: --- | AO98: 1 | AP98: 15-5-0 | AQ98: 0
AC99: 0-6-0 | AD99: 0 | AE99: 6 | AF99: 0 | AG99: 101 | AH99: --- | AI99: 92 | AJ99: 110 | AK99: --- | AL99: --- | AM99: --- | AO99: 1 | AP99: 0-6-0 | AQ99: 0
AC100: 1-6-0 | AD100: 1 | AE100: 6 | AF100: 0 | AG100: 102 | AH100: --- | AI100: 93 | AJ100: 112 | AK100: --- | AL100: --- | AM100: --- | AO100: 1 | AP100: 1-6-0 | AQ100: 0
AC101: 2-6-0 | AD101: 2 | AE101: 6 | AF101: 0 | AG101: 103 | AH101: --- | AI101: 94 | AJ101: 113 | AK101: --- | AL101: --- | AM101: --- | AO101: 1 | AP101: 2-6-0 | AQ101: 0
AC102: 3-6-0 | AD102: 3 | AE102: 6 | AF102: 0 | AG102: 105 | AH102: --- | AI102: 95 | AJ102: 114 | AK102: --- | AL102: --- | AM102: --- | AO102: 1 | AP102: 3-6-0 | AQ102: 0
AC103: 4-6-0 | AD103: 4 | AE103: 6 | AF103: 0 | AG103: 106 | AH103: --- | AI103: 96 | AJ103: 115 | AK103: --- | AL103: --- | AM103: --- | AO103: 1 | AP103: 4-6-0 | AQ103: 0
AC104: 5-6-0 | AD104: 5 | AE104: 6 | AF104: 0 | AG104: 107 | AH104: --- | AI104: 97 | AJ104: 117 | AK104: --- | AL104: --- | AM104: --- | AO104: 1 | AP104: 5-6-0 | AQ104: 0
AC105: 6-6-0 | AD105: 6 | AE105: 6 | AF105: 0 | AG105: 108 | AH105: --- | AI105: 98 | AJ105: 118 | AK105: --- | AL105: --- | AM105: --- | AO105: 1 | AP105: 6-6-0 | AQ105: 0
AC106: 7-6-0 | AD106: 7 | AE106: 6 | AF106: 0 | AG106: 109 | AH106: --- | AI106: 99 | AJ106: 119 | AK106: --- | AL106: --- | AM106: --- | AO106: 1 | AP106: 7-6-0 | AQ106: 0
AC107: 8-6-0 | AD107: 8 | AE107: 6 | AF107: 0 | AG107: 110 | AH107: --- | AI107: 100 | AJ107: 120 | AK107: --- | AL107: --- | AM107: --- | AO107: 1 | AP107: 8-6-0 | AQ107: 0
AC108: 9-6-0 | AD108: 9 | AE108: 6 | AF108: 0 | AG108: 111 | AH108: --- | AI108: 101 | AJ108: 122 | AK108: --- | AL108: --- | AM108: --- | AO108: 1 | AP108: 9-6-0 | AQ108: 0
AC109: 10-6-0 | AD109: 10 | AE109: 6 | AF109: 0 | AG109: 112 | AH109: --- | AI109: 102 | AJ109: 123 | AK109: --- | AL109: --- | AM109: --- | AO109: 1 | AP109: 10-6-0 | AQ109: 0
AC110: 11-6-0 | AD110: 11 | AE110: 6 | AF110: 0 | AG110: 114 | AH110: --- | AI110: 103 | AJ110: 124 | AK110: --- | AL110: --- | AM110: --- | AO110: 1 | AP110: 11-6-0 | AQ110: 0
AC111: 12-6-0 | AD111: 12 | AE111: 6 | AF111: 0 | AG111: 115 | AH111: --- | AI111: 104 | AJ111: 125 | AK111: --- | AL111: --- | AM111: --- | AO111: 1 | AP111: 12-6-0 | AQ111: 0
AC112: 13-6-0 | AD112: 13 | AE112: 6 | AF112: 0 | AG112: 116 | AH112: --- | AI112: 105 | AJ112: 126 | AK112: --- | AL112: --- | AM112: --- | AO112: 1 | AP112: 13-6-0 | AQ112: 0
AC113: 14-6-0 | AD113: 14 | AE113: 6 | AF113: 0 | AG113: 117 | AH113: --- | AI113: 106 | AJ113: 128 | AK113: --- | AL113: --- | AM113: --- | AO113: 1 | AP113: 14-6-0 | AQ113: 0
AC114: 15-6-0 | AD114: 15 | AE114: 6 | AF114: 0 | AG114: 118 | AH114: --- | AI114: 107 | AJ114: 129 | AK114: --- | AL114: --- | AM114: --- | AO114: 1 | AP114: 15-6-0 | AQ114: 0
AC115: 0-7-0 | AD115: 0 | AE115: 7 | AF115: 0 | AG115: 102 | AH115: --- | AI115: 92 | AJ115: 111 | AK115: --- | AL115: --- | AM115: --- | AO115: 1 | AP115: 0-7-0 | AQ115: 0
AC116: 1-7-0 | AD116: 1 | AE116: 7 | AF116: 0 | AG116: 103 | AH116: --- | AI116: 93 | AJ116: 112 | AK116: --- | AL116: --- | AM116: --- | AO116: 1 | AP116: 1-7-0 | AQ116: 0
AC117: 2-7-0 | AD117: 2 | AE117: 7 | AF117: 0 | AG117: 104 | AH117: --- | AI117: 94 | AJ117: 113 | AK117: --- | AL117: --- | AM117: --- | AO117: 1 | AP117: 2-7-0 | AQ117: 0
AC118: 3-7-0 | AD118: 3 | AE118: 7 | AF118: 0 | AG118: 105 | AH118: --- | AI118: 95 | AJ118: 115 | AK118: --- | AL118: --- | AM118: --- | AO118: 1 | AP118: 3-7-0 | AQ118: 0
AC119: 4-7-0 | AD119: 4 | AE119: 7 | AF119: 0 | AG119: 106 | AH119: --- | AI119: 96 | AJ119: 116 | AK119: --- | AL119: --- | AM119: --- | AO119: 1 | AP119: 4-7-0 | AQ119: 0
AC120: 5-7-0 | AD120: 5 | AE120: 7 | AF120: 0 | AG120: 107 | AH120: --- | AI120: 97 | AJ120: 117 | AK120: --- | AL120: --- | AM120: --- | AO120: 1 | AP120: 5-7-0 | AQ120: 0
AC121: 6-7-0 | AD121: 6 | AE121: 7 | AF121: 0 | AG121: 108 | AH121: --- | AI121: 98 | AJ121: 118 | AK121: --- | AL121: --- | AM121: --- | AO121: 1 | AP121: 6-7-0 | AQ121: 0
AC122: 7-7-0 | AD122: 7 | AE122: 7 | AF122: 0 | AG122: 110 | AH122: --- | AI122: 99 | AJ122: 120 | AK122: --- | AL122: --- | AM122: --- | AO122: 1 | AP122: 7-7-0 | AQ122: 0
AC123: 8-7-0 | AD123: 8 | AE123: 7 | AF123: 0 | AG123: 111 | AH123: --- | AI123: 100 | AJ123: 121 | AK123: --- | AL123: --- | AM123: --- | AO123: 1 | AP123: 8-7-0 | AQ123: 0
AC124: 9-7-0 | AD124: 9 | AE124: 7 | AF124: 0 | AG124: 112 | AH124: --- | AI124: 102 | AJ124: 122 | AK124: --- | AL124: --- | AM124: --- | AO124: 1 | AP124: 9-7-0 | AQ124: 0
AC125: 10-7-0 | AD125: 10 | AE125: 7 | AF125: 0 | AG125: 113 | AH125: --- | AI125: 103 | AJ125: 123 | AK125: --- | AL125: --- | AM125: --- | AO125: 1 | AP125: 10-7-0 | AQ125: 0
AC126: 11-7-0 | AD126: 11 | AE126: 7 | AF126: 0 | AG126: 114 | AH126: --- | AI126: 104 | AJ126: 125 | AK126: --- | AL126: --- | AM126: --- | AO126: 1 | AP126: 11-7-0 | AQ126: 0
AC127: 12-7-0 | AD127: 12 | AE127: 7 | AF127: 0 | AG127: 115 | AH127: --- | AI127: 105 | AJ127: 126 | AK127: --- | AL127: --- | AM127: --- | AO127: 1 | AP127: 12-7-0 | AQ127: 0
AC128: 13-7-0 | AD128: 13 | AE128: 7 | AF128: 0 | AG128: 116 | AH128: --- | AI128: 106 | AJ128: 127 | AK128: --- | AL128: --- | AM128: --- | AO128: 1 | AP128: 13-7-0 | AQ128: 0
AC129: 14-7-0 | AD129: 14 | AE129: 7 | AF129: 0 | AG129: 117 | AH129: --- | AI129: 107 | AJ129: 128 | AK129: --- | AL129: --- | AM129: --- | AO129: 1 | AP129: 14-7-0 | AQ129: 0
AC130: 15-7-0 | AD130: 15 | AE130: 7 | AF130: 0 | AG130: 119 | AH130: --- | AI130: 108 | AJ130: 129 | AK130: --- | AL130: --- | AM130: --- | AO130: 1 | AP130: 15-7-0 | AQ130: 0
AC131: 0-8-0 | AD131: 0 | AE131: 8 | AF131: 0 | AG131: 102 | AH131: --- | AI131: 93 | AJ131: 111 | AK131: --- | AL131: --- | AM131: --- | AO131: 1 | AP131: 0-8-0 | AQ131: 0
AC132: 1-8-0 | AD132: 1 | AE132: 8 | AF132: 0 | AG132: =IF($J$2="","---",ROUNDDOWN(($T$2+$AD132)*($U$2+$AE132)^0.5*($V$2+$AF132)^0.5*$J$2^2/10,0)) -> 103 | AH132: =IF($J$3="","---",ROUNDDOWN(($T$2+$AD132)*($U$2+$AE132)^0.5*($V$2+$AF132)^0.5*$J$3^2/10,0)) -> --- | AI132: =IF($J$4="","---",ROUNDDOWN(($T$2+$AD132)*($U$2+$AE132)^0.5*($V$2+$AF132)^0.5*$J$4^2/10,0)) -> 94 | AJ132: =IF($J$5="","---",ROUNDDOWN(($T$2+$AD132)*($U$2+$AE132)^0.5*($V$2+$AF132)^0.5*$J$5^2/10,0)) -> 113 | AK132: =IF(COUNTIF($N$3:$Q$17,AF132)=0,"---",IF(OR(AG132=$X$3,AH132=$X$3,AI132=$X$3,AJ132=$X$3),AD132&" - "&AE132&" - "&AF132,"---")) -> --- | AL132: =IF(AK132<>"---",AD132+AE132+AF132,"---") -> --- | AM132: =IFERROR(IF(OR(AL132/45<$T$8,AL132/45>$U$8,AP132="---"),"---",AL132/45),"---") -> --- | AO132: 1 | AP132: =IF(AO132>0,AC132,"---") -> 1-8-0 | AQ132: =IF(AND(AO132>0,AP132<>"---"),IF(AM132="---",0,1),0) -> 0
AC133: 2-8-0 | AD133: 2 | AE133: 8 | AF133: 0 | AG133: 104 | AH133: --- | AI133: 95 | AJ133: 114 | AK133: --- | AL133: --- | AM133: --- | AO133: 1 | AP133: 2-8-0 | AQ133: 0
AC134: 3-8-0 | AD134: 3 | AE134: 8 | AF134: 0 | AG134: 105 | AH134: --- | AI134: 96 | AJ134: 115 | AK134: --- | AL134: --- | AM134: --- | AO134: 1 | AP134: 3-8-0 | AQ134: 0
AC135: 4-8-0 | AD135: 4 | AE135: 8 | AF135: 0 | AG135: 107 | AH135: --- | AI135: 97 | AJ135: 116 | AK135: --- | AL135: --- | AM135: --- | AO135: 1 | AP135: 4-8-0 | AQ135: 0
AC136: 5-8-0 | AD136: 5 | AE136: 8 | AF136: 0 | AG136: 108 | AH136: --- | AI136: 98 | AJ136: 118 | AK136: --- | AL136: --- | AM136: --- | AO136: 1 | AP136: 5-8-0 | AQ136: 0
AC137: 6-8-0 | AD137: 6 | AE137: 8 | AF137: 0 | AG137: 109 | AH137: --- | AI137: 99 | AJ137: 119 | AK137: --- | AL137: --- | AM137: --- | AO137: 1 | AP137: 6-8-0 | AQ137: 0
AC138: 7-8-0 | AD138: 7 | AE138: 8 | AF138: 0 | AG138: 110 | AH138: --- | AI138: 100 | AJ138: 120 | AK138: --- | AL138: --- | AM138: --- | AO138: 1 | AP138: 7-8-0 | AQ138: 0
AC139: 8-8-0 | AD139: 8 | AE139: 8 | AF139: 0 | AG139: 111 | AH139: --- | AI139: 101 | AJ139: 121 | AK139: --- | AL139: --- | AM139: --- | AO139: 1 | AP139: 8-8-0 | AQ139: 0
AC140: 9-8-0 | AD140: 9 | AE140: 8 | AF140: 0 | AG140: 112 | AH140: --- | AI140: 102 | AJ140: 123 | AK140: --- | AL140: --- | AM140: --- | AO140: 1 | AP140: 9-8-0 | AQ140: 0
AC141: 10-8-0 | AD141: 10 | AE141: 8 | AF141: 0 | AG141: 113 | AH141: --- | AI141: 103 | AJ141: 124 | AK141: --- | AL141: --- | AM141: --- | AO141: 1 | AP141: 10-8-0 | AQ141: 0
AC142: 11-8-0 | AD142: 11 | AE142: 8 | AF142: 0 | AG142: 115 | AH142: --- | AI142: 104 | AJ142: 125 | AK142: --- | AL142: --- | AM142: --- | AO142: 1 | AP142: 11-8-0 | AQ142: 0
AC143: 12-8-0 | AD143: 12 | AE143: 8 | AF143: 0 | AG143: 116 | AH143: --- | AI143: 105 | AJ143: 126 | AK143: --- | AL143: --- | AM143: --- | AO143: 1 | AP143: 12-8-0 | AQ143: 0
AC144: 13-8-0 | AD144: 13 | AE144: 8 | AF144: 0 | AG144: 117 | AH144: --- | AI144: 106 | AJ144: 128 | AK144: --- | AL144: --- | AM144: --- | AO144: 1 | AP144: 13-8-0 | AQ144: 0
AC145: 14-8-0 | AD145: 14 | AE145: 8 | AF145: 0 | AG145: 118 | AH145: --- | AI145: 107 | AJ145: 129 | AK145: --- | AL145: --- | AM145: --- | AO145: 1 | AP145: 14-8-0 | AQ145: 0
AC146: 15-8-0 | AD146: 15 | AE146: 8 | AF146: 0 | AG146: 119 | AH146: --- | AI146: 108 | AJ146: 130 | AK146: --- | AL146: --- | AM146: --- | AO146: 1 | AP146: 15-8-0 | AQ146: 0
AC147: 0-9-0 | AD147: 0 | AE147: 9 | AF147: 0 | AG147: 102 | AH147: --- | AI147: 93 | AJ147: 112 | AK147: --- | AL147: --- | AM147: --- | AO147: 1 | AP147: 0-9-0 | AQ147: 0
AC148: 1-9-0 | AD148: 1 | AE148: 9 | AF148: 0 | AG148: 104 | AH148: --- | AI148: 94 | AJ148: 113 | AK148: --- | AL148: --- | AM148: --- | AO148: 1 | AP148: 1-9-0 | AQ148: 0
AC149: 2-9-0 | AD149: 2 | AE149: 9 | AF149: 0 | AG149: 105 | AH149: --- | AI149: 95 | AJ149: 114 | AK149: --- | AL149: --- | AM149: --- | AO149: 1 | AP149: 2-9-0 | AQ149: 0
AC150: 3-9-0 | AD150: 3 | AE150: 9 | AF150: 0 | AG150: 106 | AH150: --- | AI150: 96 | AJ150: 116 | AK150: --- | AL150: --- | AM150: --- | AO150: 1 | AP150: 3-9-0 | AQ150: 0
AC151: 4-9-0 | AD151: 4 | AE151: 9 | AF151: 0 | AG151: 107 | AH151: --- | AI151: 97 | AJ151: 117 | AK151: --- | AL151: --- | AM151: --- | AO151: 1 | AP151: 4-9-0 | AQ151: 0
AC152: 5-9-0 | AD152: 5 | AE152: 9 | AF152: 0 | AG152: 108 | AH152: --- | AI152: 98 | AJ152: 118 | AK152: --- | AL152: --- | AM152: --- | AO152: 1 | AP152: 5-9-0 | AQ152: 0
AC153: 6-9-0 | AD153: 6 | AE153: 9 | AF153: 0 | AG153: 109 | AH153: --- | AI153: 99 | AJ153: 119 | AK153: --- | AL153: --- | AM153: --- | AO153: 1 | AP153: 6-9-0 | AQ153: 0
AC154: 7-9-0 | AD154: 7 | AE154: 9 | AF154: 0 | AG154: 110 | AH154: --- | AI154: 100 | AJ154: 121 | AK154: --- | AL154: --- | AM154: --- | AO154: 1 | AP154: 7-9-0 | AQ154: 0
AC155: 8-9-0 | AD155: 8 | AE155: 9 | AF155: 0 | AG155: 112 | AH155: --- | AI155: 101 | AJ155: 122 | AK155: --- | AL155: --- | AM155: --- | AO155: 1 | AP155: 8-9-0 | AQ155: 0
AC156: 9-9-0 | AD156: 9 | AE156: 9 | AF156: 0 | AG156: 113 | AH156: --- | AI156: 102 | AJ156: 123 | AK156: --- | AL156: --- | AM156: --- | AO156: 1 | AP156: 9-9-0 | AQ156: 0
AC157: 10-9-0 | AD157: 10 | AE157: 9 | AF157: 0 | AG157: 114 | AH157: --- | AI157: 103 | AJ157: 124 | AK157: --- | AL157: --- | AM157: --- | AO157: 1 | AP157: 10-9-0 | AQ157: 0
AC158: 11-9-0 | AD158: 11 | AE158: 9 | AF158: 0 | AG158: 115 | AH158: --- | AI158: 104 | AJ158: 126 | AK158: --- | AL158: --- | AM158: --- | AO158: 1 | AP158: 11-9-0 | AQ158: 0
AC159: 12-9-0 | AD159: 12 | AE159: 9 | AF159: 0 | AG159: 116 | AH159: --- | AI159: 105 | AJ159: 127 | AK159: --- | AL159: --- | AM159: --- | AO159: 1 | AP159: 12-9-0 | AQ159: 0
AC160: 13-9-0 | AD160: 13 | AE160: 9 | AF160: 0 | AG160: 117 | AH160: --- | AI160: 107 | AJ160: 128 | AK160: --- | AL160: --- | AM160: --- | AO160: 1 | AP160: 13-9-0 | AQ160: 0
AC161: 14-9-0 | AD161: 14 | AE161: 9 | AF161: 0 | AG161: 118 | AH161: --- | AI161: 108 | AJ161: 129 | AK161: --- | AL161: --- | AM161: --- | AO161: 1 | AP161: 14-9-0 | AQ161: 0
AC162: 15-9-0 | AD162: 15 | AE162: 9 | AF162: 0 | AG162: 120 | AH162: --- | AI162: 109 | AJ162: 131 | AK162: --- | AL162: --- | AM162: --- | AO162: 1 | AP162: 15-9-0 | AQ162: 0
AC163: 0-10-0 | AD163: 0 | AE163: 10 | AF163: 0 | AG163: 103 | AH163: --- | AI163: 93 | AJ163: 112 | AK163: --- | AL163: --- | AM163: --- | AO163: 1 | AP163: 0-10-0 | AQ163: 0
AC164: 1-10-0 | AD164: 1 | AE164: 10 | AF164: 0 | AG164: 104 | AH164: --- | AI164: 94 | AJ164: 114 | AK164: --- | AL164: --- | AM164: --- | AO164: 1 | AP164: 1-10-0 | AQ164: 0
AC165: 2-10-0 | AD165: 2 | AE165: 10 | AF165: 0 | AG165: 105 | AH165: --- | AI165: 95 | AJ165: 115 | AK165: --- | AL165: --- | AM165: --- | AO165: 1 | AP165: 2-10-0 | AQ165: 0
AC166: 3-10-0 | AD166: 3 | AE166: 10 | AF166: 0 | AG166: 106 | AH166: --- | AI166: 97 | AJ166: 116 | AK166: --- | AL166: --- | AM166: --- | AO166: 1 | AP166: 3-10-0 | AQ166: 0
AC167: 4-10-0 | AD167: 4 | AE167: 10 | AF167: 0 | AG167: 107 | AH167: --- | AI167: 98 | AJ167: 117 | AK167: --- | AL167: --- | AM167: --- | AO167: 1 | AP167: 4-10-0 | AQ167: 0
AC168: 5-10-0 | AD168: 5 | AE168: 10 | AF168: 0 | AG168: 109 | AH168: --- | AI168: 99 | AJ168: 119 | AK168: --- | AL168: --- | AM168: --- | AO168: 1 | AP168: 5-10-0 | AQ168: 0
AC169: 6-10-0 | AD169: 6 | AE169: 10 | AF169: 0 | AG169: 110 | AH169: --- | AI169: 100 | AJ169: 120 | AK169: --- | AL169: --- | AM169: --- | AO169: 1 | AP169: 6-10-0 | AQ169: 0
AC170: 7-10-0 | AD170: 7 | AE170: 10 | AF170: 0 | AG170: 111 | AH170: --- | AI170: 101 | AJ170: 121 | AK170: --- | AL170: --- | AM170: --- | AO170: 1 | AP170: 7-10-0 | AQ170: 0
AC171: 8-10-0 | AD171: 8 | AE171: 10 | AF171: 0 | AG171: 112 | AH171: --- | AI171: 102 | AJ171: 122 | AK171: --- | AL171: --- | AM171: --- | AO171: 1 | AP171: 8-10-0 | AQ171: 0
AC172: 9-10-0 | AD172: 9 | AE172: 10 | AF172: 0 | AG172: 113 | AH172: --- | AI172: 103 | AJ172: 124 | AK172: --- | AL172: --- | AM172: --- | AO172: 1 | AP172: 9-10-0 | AQ172: 0
AC173: 10-10-0 | AD173: 10 | AE173: 10 | AF173: 0 | AG173: 114 | AH173: --- | AI173: 104 | AJ173: 125 | AK173: --- | AL173: --- | AM173: --- | AO173: 1 | AP173: 10-10-0 | AQ173: 0
AC174: 11-10-0 | AD174: 11 | AE174: 10 | AF174: 0 | AG174: 115 | AH174: --- | AI174: 105 | AJ174: 126 | AK174: --- | AL174: --- | AM174: --- | AO174: 1 | AP174: 11-10-0 | AQ174: 0
AC175: 12-10-0 | AD175: 12 | AE175: 10 | AF175: 0 | AG175: 117 | AH175: --- | AI175: 106 | AJ175: 127 | AK175: --- | AL175: --- | AM175: --- | AO175: 1 | AP175: 12-10-0 | AQ175: 0
AC176: 13-10-0 | AD176: 13 | AE176: 10 | AF176: 0 | AG176: 118 | AH176: --- | AI176: 107 | AJ176: 129 | AK176: --- | AL176: --- | AM176: --- | AO176: 1 | AP176: 13-10-0 | AQ176: 0
AC177: 14-10-0 | AD177: 14 | AE177: 10 | AF177: 0 | AG177: 119 | AH177: --- | AI177: 108 | AJ177: 130 | AK177: --- | AL177: --- | AM177: --- | AO177: 1 | AP177: 14-10-0 | AQ177: 0
AC178: 15-10-0 | AD178: 15 | AE178: 10 | AF178: 0 | AG178: 120 | AH178: --- | AI178: 109 | AJ178: 131 | AK178: --- | AL178: --- | AM178: --- | AO178: 1 | AP178: 15-10-0 | AQ178: 0
AC179: 0-11-0 | AD179: 0 | AE179: 11 | AF179: 0 | AG179: 103 | AH179: --- | AI179: 94 | AJ179: 113 | AK179: --- | AL179: --- | AM179: --- | AO179: 1 | AP179: 0-11-0 | AQ179: 0
AC180: 1-11-0 | AD180: 1 | AE180: 11 | AF180: 0 | AG180: 104 | AH180: --- | AI180: 95 | AJ180: 114 | AK180: --- | AL180: --- | AM180: --- | AO180: 1 | AP180: 1-11-0 | AQ180: 0
AC181: 2-11-0 | AD181: 2 | AE181: 11 | AF181: 0 | AG181: 106 | AH181: --- | AI181: 96 | AJ181: 115 | AK181: --- | AL181: --- | AM181: --- | AO181: 1 | AP181: 2-11-0 | AQ181: 0
AC182: 3-11-0 | AD182: 3 | AE182: 11 | AF182: 0 | AG182: 107 | AH182: --- | AI182: 97 | AJ182: 116 | AK182: --- | AL182: --- | AM182: --- | AO182: 1 | AP182: 3-11-0 | AQ182: 0
AC183: 4-11-0 | AD183: 4 | AE183: 11 | AF183: 0 | AG183: 108 | AH183: --- | AI183: 98 | AJ183: 118 | AK183: --- | AL183: --- | AM183: --- | AO183: 1 | AP183: 4-11-0 | AQ183: 0
AC184: 5-11-0 | AD184: 5 | AE184: 11 | AF184: 0 | AG184: 109 | AH184: --- | AI184: 99 | AJ184: 119 | AK184: --- | AL184: --- | AM184: --- | AO184: 1 | AP184: 5-11-0 | AQ184: 0
AC185: 6-11-0 | AD185: 6 | AE185: 11 | AF185: 0 | AG185: 110 | AH185: --- | AI185: 100 | AJ185: 120 | AK185: --- | AL185: --- | AM185: --- | AO185: 1 | AP185: 6-11-0 | AQ185: 0
AC186: 7-11-0 | AD186: 7 | AE186: 11 | AF186: 0 | AG186: 111 | AH186: --- | AI186: 101 | AJ186: 122 | AK186: --- | AL186: --- | AM186: --- | AO186: 1 | AP186: 7-11-0 | AQ186: 0
AC187: 8-11-0 | AD187: 8 | AE187: 11 | AF187: 0 | AG187: 112 | AH187: --- | AI187: 102 | AJ187: 123 | AK187: --- | AL187: --- | AM187: --- | AO187: 1 | AP187: 8-11-0 | AQ187: 0
AC188: 9-11-0 | AD188: 9 | AE188: 11 | AF188: 0 | AG188: 114 | AH188: --- | AI188: 103 | AJ188: 124 | AK188: --- | AL188: --- | AM188: --- | AO188: 1 | AP188: 9-11-0 | AQ188: 0
AC189: 10-11-0 | AD189: 10 | AE189: 11 | AF189: 0 | AG189: 115 | AH189: --- | AI189: 104 | AJ189: 125 | AK189: --- | AL189: --- | AM189: --- | AO189: 1 | AP189: 10-11-0 | AQ189: 0
AC190: 11-11-0 | AD190: 11 | AE190: 11 | AF190: 0 | AG190: 116 | AH190: --- | AI190: 105 | AJ190: 127 | AK190: --- | AL190: --- | AM190: --- | AO190: 1 | AP190: 11-11-0 | AQ190: 0
AC191: 12-11-0 | AD191: 12 | AE191: 11 | AF191: 0 | AG191: 117 | AH191: --- | AI191: 106 | AJ191: 128 | AK191: --- | AL191: --- | AM191: --- | AO191: 1 | AP191: 12-11-0 | AQ191: 0
AC192: 13-11-0 | AD192: 13 | AE192: 11 | AF192: 0 | AG192: 118 | AH192: --- | AI192: 107 | AJ192: 129 | AK192: --- | AL192: --- | AM192: --- | AO192: 1 | AP192: 13-11-0 | AQ192: 0
AC193: 14-11-0 | AD193: 14 | AE193: 11 | AF193: 0 | AG193: 119 | AH193: --- | AI193: 108 | AJ193: 130 | AK193: --- | AL193: --- | AM193: --- | AO193: 1 | AP193: 14-11-0 | AQ193: 0
AC194: 15-11-0 | AD194: 15 | AE194: 11 | AF194: 0 | AG194: 121 | AH194: --- | AI194: 109 | AJ194: 132 | AK194: --- | AL194: --- | AM194: --- | AO194: 1 | AP194: 15-11-0 | AQ194: 0
AC195: 0-12-0 | AD195: 0 | AE195: 12 | AF195: 0 | AG195: 104 | AH195: --- | AI195: 94 | AJ195: 113 | AK195: --- | AL195: --- | AM195: --- | AO195: 1 | AP195: 0-12-0 | AQ195: 0
AC196: 1-12-0 | AD196: 1 | AE196: 12 | AF196: 0 | AG196: =IF($J$2="","---",ROUNDDOWN(($T$2+$AD196)*($U$2+$AE196)^0.5*($V$2+$AF196)^0.5*$J$2^2/10,0)) -> 105 | AH196: =IF($J$3="","---",ROUNDDOWN(($T$2+$AD196)*($U$2+$AE196)^0.5*($V$2+$AF196)^0.5*$J$3^2/10,0)) -> --- | AI196: =IF($J$4="","---",ROUNDDOWN(($T$2+$AD196)*($U$2+$AE196)^0.5*($V$2+$AF196)^0.5*$J$4^2/10,0)) -> 95 | AJ196: =IF($J$5="","---",ROUNDDOWN(($T$2+$AD196)*($U$2+$AE196)^0.5*($V$2+$AF196)^0.5*$J$5^2/10,0)) -> 114 | AK196: =IF(COUNTIF($N$3:$Q$17,AF196)=0,"---",IF(OR(AG196=$X$3,AH196=$X$3,AI196=$X$3,AJ196=$X$3),AD196&" - "&AE196&" - "&AF196,"---")) -> --- | AL196: =IF(AK196<>"---",AD196+AE196+AF196,"---") -> --- | AM196: =IFERROR(IF(OR(AL196/45<$T$8,AL196/45>$U$8,AP196="---"),"---",AL196/45),"---") -> --- | AO196: 1 | AP196: =IF(AO196>0,AC196,"---") -> 1-12-0 | AQ196: =IF(AND(AO196>0,AP196<>"---"),IF(AM196="---",0,1),0) -> 0
AC197: 2-12-0 | AD197: 2 | AE197: 12 | AF197: 0 | AG197: 106 | AH197: --- | AI197: 96 | AJ197: 116 | AK197: --- | AL197: --- | AM197: --- | AO197: 1 | AP197: 2-12-0 | AQ197: 0
AC198: 3-12-0 | AD198: 3 | AE198: 12 | AF198: 0 | AG198: 107 | AH198: --- | AI198: 97 | AJ198: 117 | AK198: --- | AL198: --- | AM198: --- | AO198: 1 | AP198: 3-12-0 | AQ198: 0
AC199: 4-12-0 | AD199: 4 | AE199: 12 | AF199: 0 | AG199: 108 | AH199: --- | AI199: 98 | AJ199: 118 | AK199: --- | AL199: --- | AM199: --- | AO199: 1 | AP199: 4-12-0 | AQ199: 0
AC200: 5-12-0 | AD200: 5 | AE200: 12 | AF200: 0 | AG200: 109 | AH200: --- | AI200: 99 | AJ200: 119 | AK200: --- | AL200: --- | AM200: --- | AO200: 1 | AP200: 5-12-0 | AQ200: 0
... 2050 more rows

Sheet Auxiliar
A1: Lista | C1: Rank Geral | D1: D
A2: ="'Meus Pokémons'!C7:R"&COUNTA('Meus Pokémons'!$C:$C)+5 -> 'Meus Pokémons'!C7:R6 | C2: Rank Espécie | D2: D
C3: Pokémon | D3: D
C4: Apelido | D4: D
C5: CP | D5: D
C6: HP | D6: A
C7: Stardust | D7: A
C8: PowerUp | D8: A
C9: # Combinações | D9: A
C10: Mín | D10: D
C11: Máx | D11: A
C12: Méd | D12: A
C13: Lvl | D13: A
C14: Básico | D14: A
C15: Especial | D15: D
C16: Combinação | D16: A

Sheet Auxiliar2
